Workbook

Sheet 数据透视表
A3: 平均值项:支付转化率 | B3: 0.009614285714 | G3: 平均值项:支付转化率 | H3: 0.008685714286 | M3: 值
A4: 求和项:支付买家数 | B4: 432 | G4: 求和项:支付买家数 | H4: 330 | M4: 求和项:无线端支付金额(元) | N4: 137517.7842
A5: 求和项:支付金额(元) | B5: 39752.32 | G5: 求和项:支付金额(元) | H5: 29981.1 | M5: 求和项:PC端支付金额(元) | N5: 10318.92
A6: 求和项:下单买家数 | B6: 490 | G6: 求和项:下单买家数 | H6: 368
A7: 求和项:无线搜索uv | B7: 14214 | G7: 求和项:无线搜索uv | H7: 11831
A8: 平均值项:无线端支付转化率 | B8: 0.009471428571 | G8: 平均值项:无线端支付转化率 | H8: 0.008471428571
A9: 求和项:无线端支付买家数 | B9: 409 | G9: 求和项:无线端支付买家数 | H9: 308
A10: 求和项:无线端支付金额(元) | B10: 37475.32 | G10: 求和项:无线端支付金额(元) | H10: 27707.1
A11: 平均值项:无线端跳出率 | B11: 0.7705428571 | G11: 平均值项:无线端跳出率 | H11: 0.7719857143
A12: 平均值项:无线端平均停留时长(秒) | B12: 20.40851211 | G12: 平均值项:无线端平均停留时长(秒) | H12: 18.95205445 | M12: 值
A13: 求和项:无线端浏览量 | B13: 79191 | G13: 求和项:无线端浏览量 | H13: 65870 | M13: 求和项:PC端访客数 | N13: 18996
A14: 求和项:无线端访客数 | B14: 43449 | G14: 求和项:无线端访客数 | H14: 36246 | M14: 求和项:无线端访客数 | N14: 300090
A15: 平均值项:跳出率 | B15: 0.7713857143 | G15: 平均值项:跳出率 | H15: 0.7734714286
A16: 求和项:搜索UV | B16: 14546 | G16: 求和项:搜索UV | H16: 12148
A17: 平均值项:收藏率 | B17: 0.07494164472 | G17: 平均值项:收藏率 | H17: 0.07059034115
A18: 平均值项:平均停留时长(秒) | B18: 22.86089639 | G18: 平均值项:平均停留时长(秒) | H18: 21.54635181
A19: 平均值项:加购率 | B19: 0.0583304252 | G19: 平均值项:加购率 | H19: 0.05036083148
A20: 求和项:访客数 | B20: 45131 | G20: 求和项:访客数 | H20: 37869
A21: 求和项:pc搜索uv | B21: 332 | G21: 求和项:pc搜索uv | H21: 317
A22: 平均值项:PC端支付转化率 | B22: 0.01265714286 | G22: 平均值项:PC端支付转化率 | H22: 0.01255714286
A23: 求和项:PC端支付买家数 | B23: 23 | G23: 求和项:PC端支付买家数 | H23: 22
A24: 求和项:PC端支付金额(元) | B24: 2277 | G24: 求和项:PC端支付金额(元) | H24: 2274
A25: 平均值项:PC端跳出率 | B25: 0.8748142857 | G25: 平均值项:PC端跳出率 | H25: 0.8751285714
A26: 平均值项:PC端平均停留时长(秒) | B26: 113.0385714 | G26: 平均值项:PC端平均停留时长(秒) | H26: 106.4414286
A27: 求和项:PC端浏览量 | B27: 2134 | G27: 求和项:PC端浏览量 | H27: 1991
A28: 求和项:PC端访客数 | B28: 1782 | G28: 求和项:PC端访客数 | H28: 1703
A29: 求和项:直通车销售额 | G29: 求和项:直通车销售额
A30: 求和项:直通车点击量 | G30: 求和项:直通车点击量
A31: 求和项:无线直通车销售额 | G31: 求和项:无线直通车销售额
A32: 求和项:无线直通车点击量 | G32: 求和项:无线直通车点击量
A33: 求和项:pc直通车销售额 | G33: 求和项:pc直通车销售额
A34: 求和项:pc直通车点击量 | G34: 求和项:pc直通车点击量

Sheet 封面 (hidden)
AG15: 滚动条1 | AH15: 43
AG16: 滚动条2 | AH16: 36
AG19: 指标1 | AH19: =SMALL(空间!C:C,1) -> 34
AG20: 指标2 | AH20: =SMALL(空间!C:C,2) -> 36
AG25: 指标1数值
AG26: 指标1百分比
AG27: 指标2数值
AG28: 指标2百分比

Sheet 数据源
A1: 统计日期 | B1: 周 | C1: 访客数 | D1: 加购人数 | E1: 加购商品件数 | F1: 浏览量 | G1: PC端访客数 | H1: PC端加购商品件数 | I1: PC端浏览量 | J1: PC端平均停留时长(秒) | K1: PC端跳出率 | L1: PC端支付金额(元) | M1: PC端支付买家数 | N1: PC端支付商品件数 | O1: PC端支付转化率 | P1: PC端支付子订单数 | Q1: 平均停留时长(秒) | R1: 商品收藏人数 | S1: 跳出率 | T1: 无线端访客数 | U1: 无线端加购商品件数 | V1: 无线端浏览量 | W1: 无线端平均停留时长(秒) | X1: 无线端跳出率 | Y1: 无线端支付子订单数 | Z1: 无线端支付金额(元) | AA1: 无线端支付买家数 | AB1: 无线端支付商品件数 | AC1: 无线端支付转化率 | AD1: 下单金额(元) | AE1: 下单买家数 | AF1: 下单转化率 | AG1: 下单商品件数 | AH1: 支付金额(元) | AI1: 支付买家数 | AJ1: 支付商品件数 | AK1: 支付转化率 | AL1: 支付子订单数 | AM1: 收藏率 | AN1: 加购率 | AO1: PC收藏率 | AP1: PC加购率 | AQ1: 无线加购率 | AR1: pc搜索uv | AS1: 无线搜索uv | AT1: 搜索UV | AU1: 直通车销售额 | AV1: pc直通车销售额 | AW1: 无线直通车销售额 | AX1: 直通车点击量 | AY1: pc直通车点击量 | AZ1: 无线直通车点击量 | BA1: 月份
A2: 42298 | B2: =IF(A2="","",IF(WEEKDAY(A2,11)=3,"下架",WEEKDAY(A2,11))) -> 下架 | C2: 398 | D2: 36 | E2: 37 | F2: 505 | G2: 5 | H2: 0 | I2: 5 | J2: 40.6 | K2: 0 | L2: 0 | M2: 0 | N2: 0 | O2: 0 | P2: 0 | Q2: 12.34778614 | R2: 25 | S2: 0.6734 | T2: 393 | U2: 37 | V2: 500 | W2: 12.065264 | X2: 0.6692 | Y2: 0 | Z2: 0 | AA2: 0 | AB2: 0 | AC2: 0 | AD2: 99 | AE2: 1 | AF2: 0.0025 | AG2: 1 | AH2: 0 | AI2: 0 | AJ2: 0 | AK2: 0 | AL2: 0 | AM2: =R2/C2 -> 0.06281407035 | AN2: =D2/C2 -> 0.09045226131 | AO2: =H2/G2 -> 0 | AP2: =H2/C2 -> 0 | AQ2: =U2/C2 -> 0.09296482412 | AR2: 0 | AS2: 0 | AT2: =AR2+AS2 -> 0 | BA2: 十月份
A3: 42299 | B3: =IF(A3="","",IF(WEEKDAY(A3,11)=3,"下架",WEEKDAY(A3,11))) -> 4 | C3: 1159 | D3: 70 | E3: 75 | F3: 1631 | G3: 72 | H3: 11 | I3: 84 | J3: 91.2 | K3: 0.9861 | L3: 99 | M3: 1 | N3: 1 | O3: 0.0139 | P3: 1 | Q3: 18.7363458 | R3: 89 | S3: 0.6307 | T3: 1089 | U3: 64 | V3: 1547 | W3: 14.80153846 | X3: 0.6171 | Y3: 11 | Z3: 1082.02 | AA3: 11 | AB3: 11 | AC3: 0.0101 | AD3: 1086.72 | AE3: 11 | AF3: 0.0095 | AG3: 11 | AH3: 1181.02 | AI3: 12 | AJ3: 12 | AK3: 0.0104 | AL3: 12 | AM3: =R3/C3 -> 0.0767903365 | AN3: =D3/C3 -> 0.06039689387 | AO3: =H3/G3 -> 0.1527777778 | AP3: =H3/C3 -> 0.009490940466 | AQ3: =U3/C3 -> 0.05522001726 | AR3: 2 | AS3: 2 | AT3: =AR3+AS3 -> 4 | BA3: 十月份
A4: 42300 | B4: 5 | C4: 684 | D4: 34 | E4: 36 | F4: 939 | G4: 55 | H4: 3 | I4: 65 | J4: 99.51 | K4: 0.9273 | L4: 0 | M4: 0 | N4: 0 | O4: 0 | P4: 0 | Q4: 18.17180511 | R4: 43 | S4: 0.5512 | T4: 634 | U4: 33 | V4: 874 | W4: 12.12279748 | X4: 0.5315 | Y4: 4 | Z4: 396 | AA4: 4 | AB4: 4 | AC4: 0.0063 | AD4: 495 | AE4: 5 | AF4: 0.0073 | AG4: 5 | AH4: 396 | AI4: 4 | AJ4: 4 | AK4: 0.0058 | AL4: 4 | AM4: =R4/C4 -> 0.06286549708 | AN4: 0.04970760234 | AO4: 0.05454545455 | AP4: 0.004385964912 | AQ4: 0.04824561404 | AR4: 0 | AS4: 12 | AT4: 12 | BA4: 十月份
A5: 42301 | B5: 6 | C5: 711 | D5: 42 | E5: 43 | F5: 1013 | G5: 54 | H5: 9 | I5: 63 | J5: 73.68 | K5: 0.9259 | L5: 296.01 | M5: 3 | N5: 3 | O5: 0.0556 | P5: 3 | Q5: 15.59897335 | R5: 46 | S5: 0.557 | T5: 661 | U5: 34 | V5: 950 | W5: 11.74711579 | X5: 0.5325 | Y5: 4 | Z5: 396 | AA5: 4 | AB5: 4 | AC5: 0.0061 | AD5: 890.01 | AE5: 9 | AF5: 0.0127 | AG5: 9 | AH5: 692.01 | AI5: 7 | AJ5: 7 | AK5: 0.0098 | AL5: 7 | AM5: 0.064697609 | AN5: 0.05907172996 | AO5: 0.1666666667 | AP5: 0.01265822785 | AQ5: 0.04781997187 | AR5: 2 | AS5: 40 | AT5: 42 | BA5: 十月份
A6: 42302 | B6: 7 | C6: 836 | D6: 52 | E6: 52 | F6: 1203 | G6: 42 | H6: 4 | I6: 54 | J6: 93.78 | K6: 0.9286 | L6: 98.01 | M6: 1 | N6: 1 | O6: 0.0238 | P6: 1 | Q6: 15.63358271 | R6: 47 | S6: 0.5885 | T6: 798 | U6: 48 | V6: 1149 | W6: 11.96100957 | X6: 0.5764 | Y6: 8 | Z6: 791.3 | AA6: 8 | AB6: 8 | AC6: 0.01 | AD6: 888.81 | AE6: 9 | AF6: 0.0108 | AG6: 9 | AH6: 889.31 | AI6: 9 | AJ6: 9 | AK6: 0.0108 | AL6: 9 | AM6: 0.05622009569 | AN6: 0.06220095694 | AO6: 0.09523809524 | AP6: 0.004784688995 | AQ6: 0.05741626794 | AR6: 0 | AS6: 83 | AT6: 83 | BA6: 十月份
A7: 42303 | B7: 1 | C7: 965 | D7: 61 | E7: 66 | F7: 1522 | G7: 58 | H7: 6 | I7: 74 | J7: 77.95 | K7: 0.8448 | L7: 205.01 | M7: 2 | N7: 2 | O7: 0.0345 | P7: 2 | Q7: 15.55546321 | R7: 61 | S7: 0.6238 | T7: 909 | U7: 60 | V7: 1448 | W7: 12.36699931 | X7: 0.6139 | Y7: 13 | Z7: 1283.53 | AA7: 12 | AB7: 13 | AC7: 0.0132 | AD7: 1587.54 | AE7: 15 | AF7: 0.0155 | AG7: 16 | AH7: 1488.54 | AI7: 14 | AJ7: 15 | AK7: 0.0145 | AL7: 15 | AM7: 0.06321243523 | AN7: 0.06321243523 | AO7: 0.1034482759 | AP7: 0.00621761658 | AQ7: 0.0621761658 | AR7: 6 | AS7: 252 | AT7: 258 | BA7: 十月份
A8: 42304 | B8: 2 | C8: 1789 | D8: 95 | E8: 100 | F8: 2679 | G8: 102 | H8: 7 | I8: 127 | J8: 104.13 | K8: 0.8922 | L8: 198 | M8: 2 | N8: 2 | O8: 0.0196 | P8: 2 | Q8: 16.14528891 | R8: 127 | S8: 0.7803 | T8: 1689 | U8: 93 | V8: 2552 | W8: 11.76693926 | X8: 0.7762 | Y8: 8 | Z8: 786.9 | AA8: 8 | AB8: 8 | AC8: 0.0047 | AD8: 1088.85 | AE8: 11 | AF8: 0.0061 | AG8: 11 | AH8: 984.9 | AI8: 10 | AJ8: 10 | AK8: 0.0056 | AL8: 10 | AM8: 0.07098937954 | AN8: 0.05310229178 | AO8: 0.06862745098 | AP8: 0.003912800447 | AQ8: 0.0519843488 | AR8: 5 | AS8: 1124 | AT8: 1129 | BA8: 十月份
A9: 42305 | B9: 下架 | C9: 2084 | D9: 110 | E9: 115 | F9: 3109 | G9: 113 | H9: 12 | I9: 147 | J9: 91.8 | K9: 0.9027 | L9: 99 | M9: 1 | N9: 1 | O9: 0.0088 | P9: 1 | Q9: 15.34137729 | R9: 136 | S9: 0.8181 | T9: 1980 | U9: 103 | V9: 2962 | W9: 11.54704321 | X9: 0.8167 | Y9: 14 | Z9: 1385.85 | AA9: 14 | AB9: 14 | AC9: 0.0071 | AD9: 1583.85 | AE9: 15 | AF9: 0.0072 | AG9: 16 | AH9: 1484.85 | AI9: 15 | AJ9: 15 | AK9: 0.0072 | AL9: 15 | AM9: 0.06525911708 | AN9: 0.0527831094 | AO9: 0.1061946903 | AP9: 0.00575815739 | AQ9: 0.04942418426 | AR9: 22 | AS9: 1483 | AT9: 1505 | BA9: 十月份
A10: 42306 | B10: 4 | C10: 1885 | D10: 126 | E10: 135 | F10: 2830 | G10: 135 | H10: 16 | I10: 171 | J10: 86.5 | K10: 0.8889 | L10: 99 | M10: 1 | N10: 1 | O10: 0.0074 | P10: 1 | Q10: 16.37245088 | R10: 133 | S10: 0.8127 | T10: 1754 | U10: 119 | V10: 2659 | W10: 11.86274389 | X10: 0.8119 | Y10: 20 | Z10: 1969.96 | AA10: 19 | AB10: 20 | AC10: 0.0108 | AD10: 2568.88 | AE10: 23 | AF10: 0.0122 | AG10: 26 | AH10: 2068.96 | AI10: 20 | AJ10: 21 | AK10: 0.0106 | AL10: 21 | AM10: 0.07055702918 | AN10: 0.06684350133 | AO10: 0.1185185185 | AP10: 0.00848806366 | AQ10: 0.06312997347 | AR10: 9 | AS10: 1260 | AT10: 1269 | BA10: 十月份
A11: 42307 | B11: 5 | C11: 1698 | D11: 115 | E11: 124 | F11: 2629 | G11: 182 | H11: 17 | I11: 234 | J11: 66.21 | K11: 0.8736 | L11: 391.03 | M11: 4 | N11: 4 | O11: 0.022 | P11: 4 | Q11: 17.06043439 | R11: 135 | S11: 0.7803 | T11: 1522 | U11: 107 | V11: 2395 | W11: 12.25840585 | X11: 0.7773 | Y11: 16 | Z11: 1582.32 | AA11: 15 | AB11: 16 | AC11: 0.0099 | AD11: 2572.29 | AE11: 22 | AF11: 0.013 | AG11: 26 | AH11: 1973.35 | AI11: 19 | AJ11: 20 | AK11: 0.0112 | AL11: 20 | AM11: 0.07950530035 | AN11: 0.06772673734 | AO11: 0.09340659341 | AP11: 0.01001177856 | AQ11: 0.06301531213 | AR11: 19 | AS11: 951 | AT11: 970 | BA11: 十月份
A12: 42308 | B12: 6 | C12: 2290 | D12: 119 | E12: 127 | F12: 3439 | G12: 151 | H12: 10 | I12: 182 | J12: 97.49 | K12: 0.9404 | L12: 197.95 | M12: 2 | N12: 2 | O12: 0.0132 | P12: 2 | Q12: 16.50143937 | R12: 166 | S12: 0.8275 | T12: 2145 | U12: 117 | V12: 3257 | W12: 11.97588271 | X12: 0.8233 | Y12: 9 | Z12: 890.01 | AA12: 9 | AB12: 9 | AC12: 0.0042 | AD12: 1087.96 | AE12: 11 | AF12: 0.0048 | AG12: 11 | AH12: 1087.96 | AI12: 11 | AJ12: 11 | AK12: 0.0048 | AL12: 11 | AM12: 0.07248908297 | AN12: 0.0519650655 | AO12: 0.06622516556 | AP12: 0.004366812227 | AQ12: 0.05109170306 | AR12: 28 | AS12: 1538 | AT12: 1566 | BA12: 十月份
A13: 42309 | B13: 7 | C13: 2604 | D13: 153 | E13: 161 | F13: 4053 | G13: 168 | H13: 10 | I13: 199 | J13: 65.97 | K13: 0.8869 | L13: 0 | M13: 0 | N13: 0 | O13: 0 | P13: 0 | Q13: 14.27637725 | R13: 178 | S13: 0.7957 | T13: 2445 | U13: 151 | V13: 3854 | W13: 11.60694266 | X13: 0.7922 | Y13: 17 | Z13: 1678.99 | AA13: 17 | AB13: 17 | AC13: 0.007 | AD13: 2272.79 | AE13: 21 | AF13: 0.0081 | AG13: 23 | AH13: 1678.99 | AI13: 17 | AJ13: 17 | AK13: 0.0065 | AL13: 17 | AM13: 0.06835637481 | AN13: 0.05875576037 | AO13: 0.05952380952 | AP13: 0.003840245776 | AQ13: 0.05798771121 | AR13: 16 | AS13: 1682 | AT13: 1698 | BA13: 十一月份
A14: 42310 | B14: 1 | C14: 2702 | D14: 208 | E14: 219 | F14: 4290 | G14: 249 | H14: 25 | I14: 325 | J14: 95.67 | K14: 0.9036 | L14: 0 | M14: 0 | N14: 0 | O14: 0 | P14: 0 | Q14: 17.73993823 | R14: 195 | S14: 0.8053 | T14: 2461 | U14: 194 | V14: 3965 | W14: 11.3521652 | X14: 0.8029 | Y14: 24 | Z14: 2372.83 | AA14: 24 | AB14: 24 | AC14: 0.0098 | AD14: 2570.04 | AE14: 26 | AF14: 0.0096 | AG14: 26 | AH14: 2372.83 | AI14: 24 | AJ14: 24 | AK14: 0.0089 | AL14: 24 | AM14: 0.07216876388 | AN14: 0.0769800148 | AO14: 0.1004016064 | AP14: 0.009252405625 | AQ14: 0.07179866765 | AR14: 20 | AS14: 1738 | AT14: 1758 | BA14: 十一月份
A15: 42311 | B15: 2 | C15: 2603 | D15: 174 | E15: 184 | F15: 4208 | G15: 283 | H15: 28 | I15: 342 | J15: 118.49 | K15: 0.8905 | L15: 297 | M15: 3 | N15: 3 | O15: 0.0106 | P15: 3 | Q15: 20.44501901 | R15: 203 | S15: 0.8056 | T15: 2331 | U15: 156 | V15: 3866 | W15: 11.77124677 | X15: 0.8009 | Y15: 24 | Z15: 2474.01 | AA15: 24 | AB15: 25 | AC15: 0.0103 | AD15: 2870.01 | AE15: 28 | AF15: 0.0108 | AG15: 29 | AH15: 2771.01 | AI15: 27 | AJ15: 28 | AK15: 0.0104 | AL15: 27 | AM15: 0.07798693815 | AN15: 0.06684594698 | AO15: 0.09893992933 | AP15: 0.01075681905 | AQ15: 0.05993084902 | AR15: 53 | AS15: 1421 | AT15: 1474 | BA15: 十一月份
A16: 42312 | B16: 下架 | C16: 3024 | D16: 214 | E16: 228 | F16: 4870 | G16: 347 | H16: 35 | I16: 431 | J16: 91.85 | K16: 0.8818 | L16: 296.01 | M16: 2 | N16: 3 | O16: 0.0058 | P16: 3 | Q16: 18.59505236 | R16: 220 | S16: 0.8009 | T16: 2698 | U16: 193 | V16: 4439 | W16: 11.48274499 | X16: 0.8024 | Y16: 24 | Z16: 2367.09 | AA16: 24 | AB16: 24 | AC16: 0.0089 | AD16: 3261.06 | AE16: 31 | AF16: 0.0103 | AG16: 33 | AH16: 2663.1 | AI16: 26 | AJ16: 27 | AK16: 0.0086 | AL16: 27 | AM16: 0.07275132275 | AN16: 0.07076719577 | AO16: 0.1008645533 | AP16: 0.01157407407 | AQ16: 0.06382275132 | AR16: 93 | AS16: 1680 | AT16: 1773 | BA16: 十一月份
A17: 42313 | B17: 4 | C17: 2915 | D17: 188 | E17: 199 | F17: 4679 | G17: 263 | H17: 22 | I17: 320 | J17: 99.47 | K17: 0.8707 | L17: 493.7 | M17: 5 | N17: 5 | O17: 0.019 | P17: 5 | Q17: 18.03932101 | R17: 230 | S17: 0.7942 | T17: 2660 | U17: 177 | V17: 4359 | W17: 12.06124868 | X17: 0.7929 | Y17: 26 | Z17: 2567.6 | AA17: 25 | AB17: 26 | AC17: 0.0094 | AD17: 3555.31 | AE17: 34 | AF17: 0.0117 | AG17: 36 | AH17: 3061.3 | AI17: 30 | AJ17: 31 | AK17: 0.0103 | AL17: 31 | AM17: 0.07890222985 | AN17: 0.06449399657 | AO17: 0.08365019011 | AP17: 0.007547169811 | AQ17: 0.06072041166 | AR17: 19 | AS17: 1562 | AT17: 1581 | BA17: 十一月份
A18: 42314 | B18: 5 | C18: 3455 | D18: 225 | E18: 242 | F18: 5579 | G18: 285 | H18: 20 | I18: 348 | J18: 97.17 | K18: 0.8456 | L18: 197.01 | M18: 2 | N18: 2 | O18: 0.007 | P18: 2 | Q18: 17.10192776 | R18: 250 | S18: 0.8101 | T18: 3182 | U18: 222 | V18: 5231 | W18: 11.77512044 | X18: 0.814 | Y18: 23 | Z18: 2273 | AA18: 22 | AB18: 23 | AC18: 0.0069 | AD18: 2866.01 | AE18: 26 | AF18: 0.0075 | AG18: 29 | AH18: 2470.01 | AI18: 24 | AJ18: 25 | AK18: 0.0069 | AL18: 25 | AM18: 0.07235890014 | AN18: 0.06512301013 | AO18: 0.0701754386 | AP18: 0.005788712012 | AQ18: 0.06425470333 | AR18: 39 | AS18: 2101 | AT18: 2140 | BA18: 十一月份
A19: 42315 | B19: 6 | C19: 4327 | D19: 224 | E19: 234 | F19: 6661 | G19: 256 | H19: 19 | I19: 301 | J19: 78.38 | K19: 0.8828 | L19: 99 | M19: 1 | N19: 1 | O19: 0.0039 | P19: 1 | Q19: 14.19780889 | R19: 268 | S19: 0.8465 | T19: 4079 | U19: 215 | V19: 6360 | W19: 11.16047248 | X19: 0.8487 | Y19: 19 | Z19: 1877.96 | AA19: 19 | AB19: 19 | AC19: 0.0047 | AD19: 2273.96 | AE19: 23 | AF19: 0.0053 | AG19: 23 | AH19: 1976.96 | AI19: 20 | AJ19: 20 | AK19: 0.0046 | AL19: 20 | AM19: 0.06193667668 | AN19: 0.05176796857 | AO19: 0.07421875 | AP19: 0.004391033048 | AQ19: 0.04968800555 | AR19: 50 | AS19: 2885 | AT19: 2935 | BA19: 十一月份
A20: 42316 | B20: 7 | C20: 4261 | D20: 208 | E20: 223 | F20: 6585 | G20: 257 | H20: 17 | I20: 307 | J20: 98.92 | K20: 0.8677 | L20: 99 | M20: 1 | N20: 1 | O20: 0.0039 | P20: 1 | Q20: 15.38143766 | R20: 237 | S20: 0.8383 | T20: 4012 | U20: 206 | V20: 6278 | W20: 11.29623558 | X20: 0.8392 | Y20: 23 | Z20: 2273.56 | AA20: 21 | AB20: 23 | AC20: 0.0052 | AD20: 2769.55 | AE20: 24 | AF20: 0.0056 | AG20: 28 | AH20: 2372.56 | AI20: 22 | AJ20: 24 | AK20: 0.0052 | AL20: 24 | AM20: 0.0556207463 | AN20: 0.0488148322 | AO20: 0.06614785992 | AP20: 0.003989673785 | AQ20: 0.04834545881 | AR20: 49 | AS20: 2653 | AT20: 2702 | BA20: 十一月份
A21: 42317 | B21: 1 | C21: 4715 | D21: 247 | E21: 258 | F21: 7076 | G21: 404 | H21: 23 | I21: 484 | J21: 80.19 | K21: 0.8342 | L21: 0 | M21: 0 | N21: 0 | O21: 0 | P21: 0 | Q21: 16.50104664 | R21: 301 | S21: 0.838 | T21: 4331 | U21: 235 | V21: 6592 | W21: 11.82515261 | X21: 0.843 | Y21: 9 | Z21: 884.6 | AA21: 9 | AB21: 9 | AC21: 0.0021 | AD21: 1280.73 | AE21: 12 | AF21: 0.0025 | AG21: 13 | AH21: 884.6 | AI21: 9 | AJ21: 9 | AK21: 0.0019 | AL21: 9 | AM21: 0.0638388123 | AN21: 0.05238600212 | AO21: 0.05693069307 | AP21: 0.00487804878 | AQ21: 0.04984093319 | AR21: 86 | AS21: 2754 | AT21: 2840 | BA21: 十一月份
A22: 42318 | B22: 2 | C22: 5447 | D22: 277 | E22: 304 | F22: 8680 | G22: 488 | H22: 29 | I22: 605 | J22: 72.5 | K22: 0.8299 | L22: 99 | M22: 1 | N22: 1 | O22: 0.002 | P22: 1 | Q22: 15.42154355 | R22: 283 | S22: 0.8471 | T22: 4986 | U22: 275 | V22: 8075 | W22: 11.14513907 | X22: 0.8544 | Y22: 8 | Z22: 792 | AA22: 8 | AB22: 8 | AC22: 0.0016 | AD22: 1979.54 | AE22: 17 | AF22: 0.0031 | AG22: 20 | AH22: 891 | AI22: 9 | AJ22: 9 | AK22: 0.0017 | AL22: 9 | AM22: 0.0519552047 | AN22: 0.05085368093 | AO22: 0.05942622951 | AP22: 0.005324031577 | AQ22: 0.05048650633 | AR22: 135 | AS22: 3087 | AT22: 3222 | BA22: 十一月份
A23: 42319 | B23: 下架 | C23: 6447 | D23: 328 | E23: 365 | F23: 10861 | G23: 668 | H23: 39 | I23: 828 | J23: 79.54 | K23: 0.8802 | L23: 2106.52 | M23: 22 | N23: 25 | O23: 0.0329 | P23: 25 | Q23: 16.5691162 | R23: 299 | S23: 0.8429 | T23: 5819 | U23: 326 | V23: 10033 | W23: 11.37258756 | X23: 0.8472 | Y23: 189 | Z23: 16328.51 | AA23: 182 | AB23: 190 | AC23: 0.0313 | AD23: 20901.21 | AE23: 221 | AF23: 0.0343 | AG23: 244 | AH23: 18435.03 | AI23: 204 | AJ23: 215 | AK23: 0.0316 | AL23: 214 | AM23: 0.04637816038 | AN23: 0.05087637661 | AO23: 0.05838323353 | AP23: 0.006049325268 | AQ23: 0.0505661548 | AR23: 274 | AS23: 3421 | AT23: 3695 | BA23: 十一月份
A24: 42320 | B24: 4 | C24: 3954 | D24: 198 | E24: 206 | F24: 5982 | G24: 243 | H24: 14 | I24: 291 | J24: 113.47 | K24: 0.8519 | L24: 99 | M24: 1 | N24: 1 | O24: 0.0041 | P24: 1 | Q24: 17.30332514 | R24: 300 | S24: 0.8483 | T24: 3724 | U24: 192 | V24: 5691 | W24: 12.38613442 | X24: 0.8526 | Y24: 23 | Z24: 2104.34 | AA24: 22 | AB24: 23 | AC24: 0.0059 | AD24: 2501.38 | AE24: 24 | AF24: 0.0061 | AG24: 27 | AH24: 2203.34 | AI24: 23 | AJ24: 24 | AK24: 0.0058 | AL24: 24 | AM24: 0.07587253414 | AN24: 0.05007587253 | AO24: 0.05761316872 | AP24: 0.00354071826 | AQ24: 0.04855842185 | AR24: 29 | AS24: 2100 | AT24: 2129 | BA24: 十一月份
A25: 42321 | B25: 5 | C25: 3507 | D25: 197 | E25: 214 | F25: 5576 | G25: 293 | H25: 16 | I25: 339 | J25: 91.28 | K25: 0.8498 | L25: 297 | M25: 2 | N25: 3 | O25: 0.0068 | P25: 3 | Q25: 17.51733393 | R25: 240 | S25: 0.8457 | T25: 3229 | U25: 198 | V25: 5237 | W25: 12.74234371 | X25: 0.851 | Y25: 25 | Z25: 2225.72 | AA25: 25 | AB25: 25 | AC25: 0.0077 | AD25: 2967.33 | AE25: 32 | AF25: 0.0091 | AG25: 33 | AH25: 2522.72 | AI25: 27 | AJ25: 28 | AK25: 0.0077 | AL25: 28 | AM25: 0.06843455945 | AN25: 0.05617336755 | AO25: 0.05460750853 | AP25: 0.004562303964 | AQ25: 0.05645851155 | AR25: 49 | AS25: 1809 | AT25: 1858 | BA25: 十一月份
A26: 42322 | B26: 6 | C26: 4372 | D26: 229 | E26: 240 | F26: 6704 | G26: 218 | H26: 21 | I26: 247 | J26: 107.91 | K26: 0.8807 | L26: 99 | M26: 1 | N26: 1 | O26: 0.0046 | P26: 1 | Q26: 16.47711545 | R26: 304 | S26: 0.86 | T26: 4163 | U26: 219 | V26: 6457 | W26: 12.9796472 | X26: 0.8616 | Y26: 24 | Z26: 2135.62 | AA26: 24 | AB26: 24 | AC26: 0.0058 | AD26: 2690.02 | AE26: 30 | AF26: 0.0069 | AG26: 30 | AH26: 2234.62 | AI26: 25 | AJ26: 25 | AK26: 0.0057 | AL26: 25 | AM26: 0.06953339433 | AN26: 0.05237877402 | AO26: 0.09633027523 | AP26: 0.004803293687 | AQ26: 0.05009149131 | AR26: 28 | AS26: 2626 | AT26: 2654 | BA26: 十一月份
A27: 42323 | B27: 7 | C27: 4539 | D27: 237 | E27: 250 | F27: 6800 | G27: 213 | H27: 19 | I27: 247 | J27: 70.97 | K27: 0.892 | L27: 99 | M27: 1 | N27: 1 | O27: 0.0047 | P27: 1 | Q27: 15.31855618 | R27: 284 | S27: 0.8729 | T27: 4332 | U27: 231 | V27: 6553 | W27: 13.22099527 | X27: 0.8747 | Y27: 21 | Z27: 1868.3 | AA27: 21 | AB27: 21 | AC27: 0.0048 | AD27: 2591 | AE27: 25 | AF27: 0.0055 | AG27: 29 | AH27: 1967.3 | AI27: 22 | AJ27: 22 | AK27: 0.0048 | AL27: 22 | AM27: 0.06256884776 | AN27: 0.05221414408 | AO27: 0.08920187793 | AP27: 0.004185944041 | AQ27: 0.05089226702 | AR27: 26 | AS27: 2650 | AT27: 2676 | BA27: 十一月份
A28: 42324 | B28: 1 | C28: 4720 | D28: 284 | E28: 310 | F28: 7258 | G28: 310 | H28: 22 | I28: 358 | J28: 102.39 | K28: 0.9032 | L28: 296.63 | M28: 3 | N28: 3 | O28: 0.0097 | P28: 3 | Q28: 17.57813392 | R28: 316 | S28: 0.8578 | T28: 4424 | U28: 288 | V28: 6900 | W28: 13.17769507 | X28: 0.859 | Y28: 30 | Z28: 2668.08 | AA28: 30 | AB28: 30 | AC28: 0.0068 | AD28: 4042.03 | AE28: 42 | AF28: 0.0089 | AG28: 45 | AH28: 2964.71 | AI28: 33 | AJ28: 33 | AK28: 0.007 | AL28: 33 | AM28: 0.06694915254 | AN28: 0.06016949153 | AO28: 0.07096774194 | AP28: 0.004661016949 | AQ28: 0.06101694915 | AR28: 34 | AS28: 2606 | AT28: 2640 | BA28: 十一月份
A29: 42325 | B29: 2 | C29: 4832 | D29: 249 | E29: 269 | F29: 7374 | G29: 335 | H29: 20 | I29: 392 | J29: 97.43 | K29: 0.8328 | L29: 98.01 | M29: 1 | N29: 1 | O29: 0.003 | P29: 1 | Q29: 17.3649623 | R29: 301 | S29: 0.8526 | T29: 4513 | U29: 249 | V29: 6982 | W29: 12.86969808 | X29: 0.8582 | Y29: 39 | Z29: 3462.81 | AA29: 38 | AB29: 39 | AC29: 0.0084 | AD29: 3565.87 | AE29: 38 | AF29: 0.0079 | AG29: 40 | AH29: 3560.82 | AI29: 39 | AJ29: 40 | AK29: 0.0081 | AL29: 40 | AM29: 0.06229304636 | AN29: 0.05153145695 | AO29: 0.05970149254 | AP29: 0.004139072848 | AQ29: 0.05153145695 | AR29: 70 | AS29: 2430 | AT29: 2500 | BA29: 十一月份
A30: 42326 | B30: 下架 | C30: 4223 | D30: 232 | E30: 251 | F30: 6671 | G30: 367 | H30: 36 | I30: 430 | J30: 107.57 | K30: 0.8719 | L30: 395.9 | M30: 4 | N30: 4 | O30: 0.0109 | P30: 4 | Q30: 20.40044566 | R30: 312 | S30: 0.8286 | T30: 3872 | U30: 215 | V30: 6241 | W30: 14.39422737 | X30: 0.8288 | Y30: 38 | Z30: 3380.27 | AA30: 38 | AB30: 38 | AC30: 0.0098 | AD30: 4408.93 | AE30: 48 | AF30: 0.0114 | AG30: 49 | AH30: 3776.17 | AI30: 42 | AJ30: 42 | AK30: 0.0099 | AL30: 42 | AM30: 0.07388112716 | AN30: 0.0549372484 | AO30: 0.09809264305 | AP30: 0.008524745442 | AQ30: 0.05091167417 | AR30: 108 | AS30: 1957 | AT30: 2065 | BA30: 十一月份
A31: 42327 | B31: 4 | C31: 4010 | D31: 202 | E31: 227 | F31: 6844 | G31: 309 | H31: 16 | I31: 379 | J31: 85.86 | K31: 0.877 | L31: 395.01 | M31: 4 | N31: 4 | O31: 0.0129 | P31: 4 | Q31: 18.30467782 | R31: 289 | S31: 0.7519 | T31: 3710 | U31: 211 | V31: 6465 | W31: 14.34450348 | X31: 0.7493 | Y31: 20 | Z31: 1778.05 | AA31: 20 | AB31: 20 | AC31: 0.0054 | AD31: 2439.47 | AE31: 27 | AF31: 0.0067 | AG31: 27 | AH31: 2173.06 | AI31: 24 | AJ31: 24 | AK31: 0.006 | AL31: 24 | AM31: 0.07206982544 | AN31: 0.05037406484 | AO31: 0.05177993528 | AP31: 0.003990024938 | AQ31: 0.05261845387 | AR31: 24 | AS31: 1609 | AT31: 1633 | BA31: 十一月份
A32: 42328 | B32: 5 | C32: 3841 | D32: 202 | E32: 213 | F32: 6519 | G32: 283 | H32: 19 | I32: 326 | J32: 122.81 | K32: 0.8657 | L32: 99 | M32: 1 | N32: 1 | O32: 0.0035 | P32: 1 | Q32: 20.27416782 | R32: 241 | S32: 0.7529 | T32: 3567 | U32: 194 | V32: 6193 | W32: 14.87668335 | X32: 0.748 | Y32: 42 | Z32: 3734.13 | AA32: 39 | AB32: 42 | AC32: 0.0109 | AD32: 4100.43 | AE32: 42 | AF32: 0.0109 | AG32: 46 | AH32: 3833.13 | AI32: 40 | AJ32: 43 | AK32: 0.0104 | AL32: 43 | AM32: 0.06274407706 | AN32: 0.05259047123 | AO32: 0.06713780919 | AP32: 0.004946628482 | AQ32: 0.05050768029 | AR32: 19 | AS32: 1526 | AT32: 1545 | BA32: 十一月份
A33: 42329 | B33: 6 | C33: 4613 | D33: 241 | E33: 248 | F33: 7847 | G33: 265 | H33: 19 | I33: 316 | J33: 88.83 | K33: 0.834 | L33: 396 | M33: 3 | N33: 4 | O33: 0.0113 | P33: 4 | Q33: 17.9791728 | R33: 335 | S33: 0.7546 | T33: 4361 | U33: 229 | V33: 7531 | W33: 15.00618364 | X33: 0.7528 | Y33: 29 | Z33: 2572.51 | AA33: 29 | AB33: 29 | AC33: 0.0066 | AD33: 3151.09 | AE33: 33 | AF33: 0.0072 | AG33: 35 | AH33: 2968.51 | AI33: 32 | AJ33: 33 | AK33: 0.0069 | AL33: 33 | AM33: 0.07262085411 | AN33: 0.05224365922 | AO33: 0.07169811321 | AP33: 0.004118794711 | AQ33: 0.0496423152 | AR33: 30 | AS33: 1848 | AT33: 1878 | BA33: 十一月份
A34: 42330 | B34: 7 | C34: 4936 | D34: 272 | E34: 287 | F34: 8629 | G34: 234 | H34: 17 | I34: 292 | J34: 85.15 | K34: 0.8889 | L34: 297 | M34: 3 | N34: 3 | O34: 0.0128 | P34: 3 | Q34: 17.10657388 | R34: 300 | S34: 0.7393 | T34: 4712 | U34: 270 | V34: 8337 | W34: 14.72347679 | X34: 0.7341 | Y34: 50 | Z34: 4449.62 | AA34: 48 | AB34: 50 | AC34: 0.0102 | AD34: 5112.92 | AE34: 53 | AF34: 0.0107 | AG34: 57 | AH34: 4746.62 | AI34: 51 | AJ34: 53 | AK34: 0.0103 | AL34: 53 | AM34: 0.06077795786 | AN34: 0.05510534846 | AO34: 0.07264957265 | AP34: 0.003444084279 | AQ34: 0.05470016207 | AR34: 26 | AS34: 2201 | AT34: 2227 | BA34: 十一月份
A35: 42331 | B35: 1 | C35: 4863 | D35: 237 | E35: 247 | F35: 8195 | G35: 346 | H35: 18 | I35: 405 | J35: 99 | K35: 0.8468 | L35: 198 | M35: 1 | N35: 2 | O35: 0.0029 | P35: 2 | Q35: 18.45883112 | R35: 325 | S35: 0.7534 | T35: 4527 | U35: 229 | V35: 7790 | W35: 14.2717742 | X35: 0.7513 | Y35: 27 | Z35: 2402.28 | AA35: 27 | AB35: 27 | AC35: 0.006 | AD35: 2778.48 | AE35: 30 | AF35: 0.0062 | AG35: 31 | AH35: 2600.28 | AI35: 28 | AJ35: 29 | AK35: 0.0058 | AL35: 29 | AM35: 0.06683117417 | AN35: 0.04873534855 | AO35: 0.05202312139 | AP35: 0.003701418877 | AQ35: 0.04709027349 | AR35: 60 | AS35: 2220 | AT35: 2280 | BA35: 十一月份
A36: 42332 | B36: 2 | C36: 4969 | D36: 291 | E36: 303 | F36: 8386 | G36: 389 | H36: 35 | I36: 471 | J36: 115.88 | K36: 0.892 | L36: 394.25 | M36: 4 | N36: 4 | O36: 0.0103 | P36: 4 | Q36: 20.07865025 | R36: 295 | S36: 0.7589 | T36: 4595 | U36: 268 | V36: 7915 | W36: 14.37770828 | X36: 0.7547 | Y36: 32 | Z36: 2841.5 | AA36: 32 | AB36: 32 | AC36: 0.007 | AD36: 3418.38 | AE36: 37 | AF36: 0.0074 | AG36: 38 | AH36: 3235.75 | AI36: 36 | AJ36: 36 | AK36: 0.0072 | AL36: 36 | AM36: 0.05936808211 | AN36: 0.05856309117 | AO36: 0.08997429306 | AP36: 0.007043670759 | AQ36: 0.05393439324 | AR36: 89 | AS36: 2415 | AT36: 2504 | BA36: 十一月份
A37: 42333 | B37: 下架 | C37: 4819 | D37: 246 | E37: 273 | F37: 8058 | G37: 395 | H37: 18 | I37: 459 | J37: 102.73 | K37: 0.8937 | L37: 198 | M37: 2 | N37: 2 | O37: 0.0051 | P37: 2 | Q37: 20.36535034 | R37: 323 | S37: 0.7624 | T37: 4436 | U37: 255 | V37: 7599 | W37: 15.390182 | X37: 0.7559 | Y37: 44 | Z37: 3909.04 | AA37: 44 | AB37: 44 | AC37: 0.0099 | AD37: 5190.59 | AE37: 54 | AF37: 0.0112 | AG37: 58 | AH37: 4107.04 | AI37: 46 | AJ37: 46 | AK37: 0.0095 | AL37: 46 | AM37: 0.06702635402 | AN37: 0.05104793526 | AO37: 0.04556962025 | AP37: 0.003735214775 | AQ37: 0.05291554264 | AR37: 148 | AS37: 2198 | AT37: 2346 | BA37: 十一月份
A38: 42334 | B38: 4 | C38: 4381 | D38: 232 | E38: 249 | F38: 7715 | G38: 277 | H38: 17 | I38: 317 | J38: 125.86 | K38: 0.8809 | L38: 197.56 | M38: 2 | N38: 2 | O38: 0.0072 | P38: 2 | Q38: 19.2187895 | R38: 293 | S38: 0.7473 | T38: 4116 | U38: 232 | V38: 7398 | W38: 14.64908908 | X38: 0.7425 | Y38: 41 | Z38: 3648.64 | AA38: 40 | AB38: 41 | AC38: 0.0097 | AD38: 4558.11 | AE38: 47 | AF38: 0.0107 | AG38: 51 | AH38: 3846.2 | AI38: 42 | AJ38: 43 | AK38: 0.0096 | AL38: 43 | AM38: 0.06687970783 | AN38: 0.05295594613 | AO38: 0.06137184116 | AP38: 0.003880392604 | AQ38: 0.05295594613 | AR38: 26 | AS38: 2094 | AT38: 2120 | BA38: 十一月份
A39: 42335 | B39: 5 | C39: 4169 | D39: 218 | E39: 230 | F39: 7166 | G39: 269 | H39: 20 | I39: 329 | J39: 92.4 | K39: 0.881 | L39: 197.01 | M39: 2 | N39: 2 | O39: 0.0074 | P39: 2 | Q39: 19.69826123 | R39: 285 | S39: 0.7467 | T39: 3912 | U39: 210 | V39: 6837 | W39: 16.1997572 | X39: 0.7434 | Y39: 27 | Z39: 2403.77 | AA39: 27 | AB39: 27 | AC39: 0.0069 | AD39: 2868.08 | AE39: 32 | AF39: 0.0077 | AG39: 32 | AH39: 2600.78 | AI39: 29 | AJ39: 29 | AK39: 0.007 | AL39: 29 | AM39: 0.06836171744 | AN39: 0.0522907172 | AO39: 0.07434944238 | AP39: 0.004797313504 | AQ39: 0.0503717918 | AR39: 24 | AS39: 1833 | AT39: 1857 | BA39: 十一月份
A40: 42336 | B40: 6 | C40: 4705 | D40: 249 | E40: 261 | F40: 8201 | G40: 242 | H40: 11 | I40: 274 | J40: 95.72 | K40: 0.8884 | L40: 0 | M40: 0 | N40: 0 | O40: 0 | P40: 0 | Q40: 19.15215925 | R40: 299 | S40: 0.7573 | T40: 4470 | U40: 250 | V40: 7927 | W40: 16.50559581 | X40: 0.7521 | Y40: 28 | Z40: 2494.8 | AA40: 27 | AB40: 28 | AC40: 0.006 | AD40: 2851.2 | AE40: 27 | AF40: 0.0057 | AG40: 32 | AH40: 2494.8 | AI40: 27 | AJ40: 28 | AK40: 0.0057 | AL40: 28 | AM40: 0.06354941552 | AN40: 0.05292242295 | AO40: 0.04545454545 | AP40: 0.002337938363 | AQ40: 0.05313496281 | AR40: 42 | AS40: 2181 | AT40: 2223 | BA40: 十一月份
A41: 42337 | B41: 7 | C41: 4650 | D41: 242 | E41: 257 | F41: 8191 | G41: 210 | H41: 16 | I41: 246 | J41: 105.94 | K41: 0.9095 | L41: 297 | M41: 3 | N41: 3 | O41: 0.0143 | P41: 3 | Q41: 20.33740264 | R41: 323 | S41: 0.7415 | T41: 4451 | U41: 241 | V41: 7945 | W41: 17.68693077 | X41: 0.7358 | Y41: 32 | Z41: 2851.2 | AA41: 32 | AB41: 32 | AC41: 0.0072 | AD41: 3593.7 | AE41: 39 | AF41: 0.0084 | AG41: 40 | AH41: 3148.2 | AI41: 35 | AJ41: 35 | AK41: 0.0075 | AL41: 35 | AM41: 0.06946236559 | AN41: 0.05204301075 | AO41: 0.07619047619 | AP41: 0.003440860215 | AQ41: 0.05182795699 | AR41: 26 | AS41: 2072 | AT41: 2098 | BA41: 十一月份
A42: 42338 | B42: 1 | C42: 4602 | D42: 254 | E42: 266 | F42: 8351 | G42: 260 | H42: 23 | I42: 307 | J42: 104.82 | K42: 0.8846 | L42: 0 | M42: 0 | N42: 0 | O42: 0 | P42: 0 | Q42: 19.8098375 | R42: 336 | S42: 0.7523 | T42: 4356 | U42: 243 | V42: 8044 | W42: 16.56538451 | X42: 0.7477 | Y42: 33 | Z42: 3187.8 | AA42: 31 | AB42: 34 | AC42: 0.0071 | AD42: 3732.3 | AE42: 36 | AF42: 0.0078 | AG42: 40 | AH42: 3187.8 | AI42: 31 | AJ42: 34 | AK42: 0.0067 | AL42: 33 | AM42: 0.07301173403 | AN42: 0.05519339418 | AO42: 0.08846153846 | AP42: 0.004997827032 | AQ42: 0.05280312907 | AR42: 35 | AS42: 2160 | AT42: 2195 | BA42: 十一月份
A43: 42339 | B43: 2 | C43: 5068 | D43: 274 | E43: 292 | F43: 9097 | G43: 313 | H43: 23 | I43: 367 | J43: 95.92 | K43: 0.8658 | L43: 396 | M43: 4 | N43: 4 | O43: 0.0128 | P43: 4 | Q43: 20.15567978 | R43: 386 | S43: 0.7559 | T43: 4768 | U43: 269 | V43: 8730 | W43: 16.97047182 | X43: 0.7527 | Y43: 32 | Z43: 2851.2 | AA43: 32 | AB43: 32 | AC43: 0.0067 | AD43: 4009.5 | AE43: 42 | AF43: 0.0083 | AG43: 44 | AH43: 3247.2 | AI43: 36 | AJ43: 36 | AK43: 0.0071 | AL43: 36 | AM43: 0.07616416732 | AN43: 0.05406471981 | AO43: 0.07348242812 | AP43: 0.0045382794 | AQ43: 0.05307813733 | AR43: 65 | AS43: 2191 | AT43: 2256 | BA43: 十二月份
A44: 42340 | B44: 下架 | C44: 4713 | D44: 265 | E44: 282 | F44: 8223 | G44: 369 | H44: 28 | I44: 439 | J44: 117.05 | K44: 0.8889 | L44: 297 | M44: 3 | N44: 3 | O44: 0.0081 | P44: 3 | Q44: 21.97032409 | R44: 304 | S44: 0.7556 | T44: 4357 | U44: 254 | V44: 7784 | W44: 16.60803893 | X44: 0.7485 | Y44: 25 | Z44: 2227.5 | AA44: 25 | AB44: 25 | AC44: 0.0057 | AD44: 3633.3 | AE44: 37 | AF44: 0.0079 | AG44: 40 | AH44: 2524.5 | AI44: 28 | AJ44: 28 | AK44: 0.0059 | AL44: 28 | AM44: 0.06450244006 | AN44: 0.05622745597 | AO44: 0.07588075881 | AP44: 0.005941014216 | AQ44: 0.0538934861 | AR44: 131 | AS44: 2066 | AT44: 2197 | BA44: 十二月份
A45: 42341 | B45: 4 | C45: 4435 | D45: 252 | E45: 265 | F45: 8274 | G45: 299 | H45: 26 | I45: 370 | J45: 92.62 | K45: 0.8796 | L45: 297 | M45: 3 | N45: 3 | O45: 0.01 | P45: 3 | Q45: 21.54907276 | R45: 333 | S45: 0.743 | T45: 4154 | U45: 239 | V45: 7904 | W45: 18.22204302 | X45: 0.7395 | Y45: 46 | Z45: 4098.6 | AA45: 46 | AB45: 46 | AC45: 0.0111 | AD45: 4593.6 | AE45: 50 | AF45: 0.0113 | AG45: 51 | AH45: 4395.6 | AI45: 49 | AJ45: 49 | AK45: 0.011 | AL45: 49 | AM45: 0.07508455468 | AN45: 0.05682074408 | AO45: 0.08695652174 | AP45: 0.005862457723 | AQ45: 0.05388951522 | AR45: 39 | AS45: 1739 | AT45: 1778 | BA45: 十二月份
A46: 42342 | B46: 5 | C46: 3977 | D46: 212 | E46: 226 | F46: 7099 | G46: 279 | H46: 19 | I46: 328 | J46: 100.63 | K46: 0.8853 | L46: 198 | M46: 1 | N46: 2 | O46: 0.0036 | P46: 2 | Q46: 21.40813269 | R46: 268 | S46: 0.7546 | T46: 3708 | U46: 207 | V46: 6771 | W46: 17.57071836 | X46: 0.7476 | Y46: 31 | Z46: 2717.55 | AA46: 30 | AB46: 31 | AC46: 0.0081 | AD46: 3316.5 | AE46: 34 | AF46: 0.0085 | AG46: 37 | AH46: 2915.55 | AI46: 31 | AJ46: 33 | AK46: 0.0078 | AL46: 33 | AM46: 0.067387478 | AN46: 0.05330651245 | AO46: 0.06810035842 | AP46: 0.004777470455 | AQ46: 0.05204928338 | AR46: 57 | AS46: 1438 | AT46: 1495 | BA46: 十二月份
A47: 42343 | B47: 6 | C47: 4406 | D47: 253 | E47: 274 | F47: 7891 | G47: 242 | H47: 14 | I47: 271 | J47: 125.01 | K47: 0.9008 | L47: 198 | M47: 2 | N47: 2 | O47: 0.0083 | P47: 2 | Q47: 22.56068242 | R47: 304 | S47: 0.7537 | T47: 4173 | U47: 260 | V47: 7620 | W47: 18.91697441 | X47: 0.7486 | Y47: 24 | Z47: 2227.5 | AA47: 24 | AB47: 25 | AC47: 0.0058 | AD47: 2910.6 | AE47: 29 | AF47: 0.0066 | AG47: 32 | AH47: 2425.5 | AI47: 26 | AJ47: 27 | AK47: 0.0059 | AL47: 26 | AM47: 0.06899682251 | AN47: 0.05742169768 | AO47: 0.05785123967 | AP47: 0.003177485247 | AQ47: 0.05901044031 | AR47: 65 | AS47: 1742 | AT47: 1807 | BA47: 十二月份
A48: 42344 | B48: 7 | C48: 4953 | D48: 262 | E48: 277 | F48: 8971 | G48: 221 | H48: 12 | I48: 270 | J48: 85.58 | K48: 0.914 | L48: 594 | M48: 4 | N48: 6 | O48: 0.0181 | P48: 5 | Q48: 20.08824401 | R48: 339 | S48: 0.7628 | T48: 4741 | U48: 265 | V48: 8701 | W48: 18.05592886 | X48: 0.7581 | Y48: 43 | Z48: 3831.3 | AA48: 43 | AB48: 43 | AC48: 0.0091 | AD48: 5019.3 | AE48: 54 | AF48: 0.0109 | AG48: 56 | AH48: 4425.3 | AI48: 47 | AJ48: 49 | AK48: 0.0095 | AL48: 48 | AM48: 0.06844336766 | AN48: 0.052897234 | AO48: 0.05429864253 | AP48: 0.002422774076 | AQ48: 0.05350292752 | AR48: 64 | AS48: 2102 | AT48: 2166 | BA48: 十二月份
A49: 42345 | B49: 1 | C49: 5591 | D49: 337 | E49: 355 | F49: 9855 | G49: 342 | H49: 27 | I49: 390 | J49: 105.38 | K49: 0.9035 | L49: 0 | M49: 0 | N49: 0 | O49: 0 | P49: 0 | Q49: 19.9965449 | R49: 397 | S49: 0.785 | T49: 5266 | U49: 328 | V49: 9465 | W49: 16.47828315 | X49: 0.781 | Y49: 33 | Z49: 2940.3 | AA49: 29 | AB49: 33 | AC49: 0.0055 | AD49: 3573.9 | AE49: 35 | AF49: 0.0063 | AG49: 40 | AH49: 2940.3 | AI49: 29 | AJ49: 33 | AK49: 0.0052 | AL49: 33 | AM49: 0.0710069755 | AN49: 0.06027544268 | AO49: 0.07894736842 | AP49: 0.004829189769 | AQ49: 0.05866571275 | AR49: 105 | AS49: 2755 | AT49: 2860 | BA49: 十二月份
A50: 42346 | B50: 2 | C50: 5823 | D50: 329 | E50: 340 | F50: 10140 | G50: 395 | H50: 25 | I50: 443 | J50: 100.49 | K50: 0.8861 | L50: 0 | M50: 0 | N50: 0 | O50: 0 | P50: 0 | Q50: 20.75612604 | R50: 395 | S50: 0.7883 | T50: 5444 | U50: 315 | V50: 9697 | W50: 17.11344931 | X50: 0.786 | Y50: 31 | Z50: 2762.1 | AA50: 30 | AB50: 31 | AC50: 0.0055 | AD50: 3564 | AE50: 38 | AF50: 0.0065 | AG50: 40 | AH50: 2762.1 | AI50: 30 | AJ50: 31 | AK50: 0.0052 | AL50: 31 | AM50: 0.0678344496 | AN50: 0.05650008587 | AO50: 0.06329113924 | AP50: 0.004293319595 | AQ50: 0.05409582689 | AR50: 133 | AS50: 2789 | AT50: 2922 | BA50: 十二月份
A51: 42347 | B51: 下架 | C51: 5521 | D51: 310 | E51: 336 | F51: 9902 | G51: 411 | H51: 31 | I51: 489 | J51: 90.31 | K51: 0.9173 | L51: 99 | M51: 1 | N51: 1 | O51: 0.0024 | P51: 1 | Q51: 20.4172448 | R51: 370 | S51: 0.7937 | T51: 5133 | U51: 305 | V51: 9413 | W51: 16.78609986 | X51: 0.7884 | Y51: 42 | Z51: 3742.2 | AA51: 39 | AB51: 42 | AC51: 0.0076 | AD51: 3752.1 | AE51: 39 | AF51: 0.0071 | AG51: 42 | AH51: 3841.2 | AI51: 40 | AJ51: 43 | AK51: 0.0072 | AL51: 43 | AM51: 0.06701684477 | AN51: 0.05614924832 | AO51: 0.07542579075 | AP51: 0.005614924832 | AQ51: 0.05524361529 | AR51: 178 | AS51: 2773 | AT51: 2951 | BA51: 十二月份
A52: 42348 | B52: 4 | C52: 5273 | D52: 314 | E52: 328 | F52: 9431 | G52: 300 | H52: 22 | I52: 358 | J52: 114.61 | K52: 0.9 | L52: 297 | M52: 3 | N52: 3 | O52: 0.01 | P52: 3 | Q52: 21.76629647 | R52: 315 | S52: 0.7817 | T52: 4988 | U52: 306 | V52: 9073 | W52: 18.10304662 | X52: 0.7783 | Y52: 32 | Z52: 2940.3 | AA52: 32 | AB52: 33 | AC52: 0.0064 | AD52: 3960 | AE52: 40 | AF52: 0.0076 | AG52: 44 | AH52: 3237.3 | AI52: 35 | AJ52: 36 | AK52: 0.0066 | AL52: 35 | AM52: 0.0597382894 | AN52: 0.05954864404 | AO52: 0.07333333333 | AP52: 0.00417219799 | AQ52: 0.05803148113 | AR52: 91 | AS52: 2561 | AT52: 2652 | BA52: 十二月份
A53: 42349 | B53: 5 | C53: 6931 | D53: 400 | E53: 421 | F53: 12579 | G53: 366 | H53: 30 | I53: 465 | J53: 101.1 | K53: 0.8716 | L53: 198 | M53: 2 | N53: 2 | O53: 0.0055 | P53: 2 | Q53: 20.98683592 | R53: 403 | S53: 0.7751 | T53: 6588 | U53: 391 | V53: 12114 | W53: 17.91154111 | X53: 0.774 | Y53: 43 | Z53: 3831.2 | AA53: 39 | AB53: 43 | AC53: 0.0059 | AD53: 4563.9 | AE53: 46 | AF53: 0.0066 | AG53: 51 | AH53: 4029.2 | AI53: 41 | AJ53: 45 | AK53: 0.0059 | AL53: 45 | AM53: 0.05814456788 | AN53: 0.05771172991 | AO53: 0.08196721311 | AP53: 0.004328379743 | AQ53: 0.05641321599 | AR53: 114 | AS53: 3335 | AT53: 3449 | BA53: 十二月份
A54: 42350 | B54: 6 | C54: 8184 | D54: 442 | E54: 480 | F54: 15846 | G54: 400 | H54: 33 | I54: 513 | J54: 88.75 | K54: 0.89 | L54: 1713.87 | M54: 19 | N54: 20 | O54: 0.0475 | P54: 20 | Q54: 20.40860911 | R54: 426 | S54: 0.7781 | T54: 7818 | U54: 447 | V54: 15333 | W54: 18.12214309 | X54: 0.7751 | Y54: 213 | Z54: 18395.3 | AA54: 211 | AB54: 215 | AC54: 0.027 | AD54: 24176.82 | AE54: 260 | AF54: 0.0318 | AG54: 282 | AH54: 20109.17 | AI54: 230 | AJ54: 235 | AK54: 0.0281 | AL54: 233 | AM54: 0.05205278592 | AN54: 0.05400782014 | AO54: 0.0825 | AP54: 0.004032258065 | AQ54: 0.05461876833 | AR54: 135 | AS54: 3717 | AT54: 3852 | BA54: 十二月份
A55: 42351 | B55: 7 | C55: 6159 | D55: 309 | E55: 331 | F55: 10627 | G55: 234 | H55: 16 | I55: 273 | J55: 108.59 | K55: 0.9145 | L55: 198 | M55: 2 | N55: 2 | O55: 0.0085 | P55: 2 | Q55: 19.82518142 | R55: 425 | S55: 0.7806 | T55: 5936 | U55: 315 | V55: 10354 | W55: 17.4847598 | X55: 0.7775 | Y55: 34 | Z55: 3105.84 | AA55: 34 | AB55: 35 | AC55: 0.0057 | AD55: 3603.6 | AE55: 36 | AF55: 0.0058 | AG55: 40 | AH55: 3303.84 | AI55: 36 | AJ55: 37 | AK55: 0.0058 | AL55: 36 | AM55: 0.06900470856 | AN55: 0.05017048222 | AO55: 0.06837606838 | AP55: 0.002597824322 | AQ55: 0.05114466634 | AR55: 65 | AS55: 2193 | AT55: 2258 | BA55: 十二月份
A56: 42352 | B56: 1 | C56: 5898 | D56: 318 | E56: 336 | F56: 10435 | G56: 281 | H56: 24 | I56: 333 | J56: 91.08 | K56: 0.8897 | L56: 391.05 | M56: 4 | N56: 4 | O56: 0.0142 | P56: 4 | Q56: 22.12590954 | R56: 453 | S56: 0.7723 | T56: 5630 | U56: 312 | V56: 10102 | W56: 19.85308513 | X56: 0.7694 | Y56: 50 | Z56: 4544 | AA56: 50 | AB56: 51 | AC56: 0.0089 | AD56: 5474.7 | AE56: 56 | AF56: 0.0095 | AG56: 61 | AH56: 4935.05 | AI56: 54 | AJ56: 55 | AK56: 0.0092 | AL56: 54 | AM56: 0.07680569685 | AN56: 0.05391658189 | AO56: 0.08540925267 | AP56: 0.004069175992 | AQ56: 0.05289928789 | AR56: 64 | AS56: 2056 | AT56: 2120 | BA56: 十二月份
A57: 42353 | B57: 2 | C57: 6175 | D57: 360 | E57: 393 | F57: 11379 | G57: 341 | H57: 28 | I57: 412 | J57: 112.94 | K57: 0.8827 | L57: 297 | M57: 2 | N57: 3 | O57: 0.0059 | P57: 3 | Q57: 22.30309307 | R57: 413 | S57: 0.771 | T57: 5853 | U57: 365 | V57: 10967 | W57: 18.89795714 | X57: 0.7692 | Y57: 44 | Z57: 4009.5 | AA57: 43 | AB57: 45 | AC57: 0.0073 | AD57: 5910.3 | AE57: 57 | AF57: 0.0092 | AG57: 66 | AH57: 4306.5 | AI57: 45 | AJ57: 48 | AK57: 0.0073 | AL57: 47 | AM57: 0.06688259109 | AN57: 0.05829959514 | AO57: 0.08211143695 | AP57: 0.004534412955 | AQ57: 0.05910931174 | AR57: 106 | AS57: 2503 | AT57: 2609 | BA57: 十二月份
A58: 42354 | B58: 下架 | C58: 5616 | D58: 275 | E58: 292 | F58: 10047 | G58: 369 | H58: 18 | I58: 431 | J58: 113.84 | K58: 0.8509 | L58: 396 | M58: 4 | N58: 4 | O58: 0.0108 | P58: 4 | Q58: 22.68586503 | R58: 352 | S58: 0.7637 | T58: 5263 | U58: 274 | V58: 9616 | W58: 18.60013374 | X58: 0.7633 | Y58: 53 | Z58: 4722.3 | AA58: 53 | AB58: 53 | AC58: 0.0101 | AD58: 5395.5 | AE58: 58 | AF58: 0.0103 | AG58: 60 | AH58: 5118.3 | AI58: 57 | AJ58: 57 | AK58: 0.0101 | AL58: 57 | AM58: 0.06267806268 | AN58: 0.04896723647 | AO58: 0.0487804878 | AP58: 0.003205128205 | AQ58: 0.04878917379 | AR58: 143 | AS58: 2179 | AT58: 2322 | BA58: 十二月份
A59: 42355 | B59: 4 | C59: 4771 | D59: 249 | E59: 258 | F59: 8418 | G59: 254 | H59: 17 | I59: 309 | J59: 111.79 | K59: 0.8425 | L59: 198 | M59: 2 | N59: 2 | O59: 0.0079 | P59: 2 | Q59: 22.68436493 | R59: 334 | S59: 0.7703 | T59: 4527 | U59: 241 | V59: 8109 | W59: 19.28881292 | X59: 0.7696 | Y59: 38 | Z59: 3388.674194 | AA59: 38 | AB59: 38 | AC59: 0.0084 | AD59: 4121.274194 | AE59: 46 | AF59: 0.0096 | AG59: 46 | AH59: 3586.674194 | AI59: 40 | AJ59: 40 | AK59: 0.0084 | AL59: 40 | AM59: 0.07000628799 | AN59: 0.0521903165 | AO59: 0.06692913386 | AP59: 0.003563194299 | AQ59: 0.05051351918 | AR59: 59 | AS59: 1548 | AT59: 1607 | BA59: 十二月份
A60: 42356 | B60: 5 | C60: 4811 | D60: 199 | E60: 216 | F60: 8510 | G60: 243 | H60: 12 | I60: 286 | J60: 126.18 | K60: 0.8107 | L60: 396 | M60: 4 | N60: 4 | O60: 0.0165 | P60: 4 | Q60: 21.85214571 | R60: 327 | S60: 0.7639 | T60: 4581 | U60: 204 | V60: 8224 | W60: 18.22407101 | X60: 0.7642 | Y60: 44 | Z60: 3920.4 | AA60: 43 | AB60: 44 | AC60: 0.0094 | AD60: 5029.2 | AE60: 50 | AF60: 0.0104 | AG60: 56 | AH60: 4316.4 | AI60: 47 | AJ60: 48 | AK60: 0.0098 | AL60: 48 | AM60: 0.06796923716 | AN60: 0.04136354188 | AO60: 0.04938271605 | AP60: 0.002494283933 | AQ60: 0.04240282686 | AR60: 39 | AS60: 1414 | AT60: 1453 | BA60: 十二月份
A61: 42357 | B61: 6 | C61: 5121 | D61: 235 | E61: 245 | F61: 9069 | G61: 196 | H61: 7 | I61: 219 | J61: 107.7 | K61: 0.8673 | L61: 99 | M61: 1 | N61: 1 | O61: 0.0051 | P61: 1 | Q61: 20.81537479 | R61: 349 | S61: 0.7782 | T61: 4931 | U61: 238 | V61: 8850 | W61: 18.66526938 | X61: 0.7771 | Y61: 29 | Z61: 2583.9 | AA61: 28 | AB61: 29 | AC61: 0.0057 | AD61: 2950.2 | AE61: 31 | AF61: 0.0061 | AG61: 33 | AH61: 2682.9 | AI61: 29 | AJ61: 30 | AK61: 0.0057 | AL61: 30 | AM61: 0.06815075181 | AN61: 0.04588947471 | AO61: 0.03571428571 | AP61: 0.001366920523 | AQ61: 0.04647529779 | AR61: 27 | AS61: 1560 | AT61: 1587 | BA61: 十二月份
A62: 42358 | B62: 7 | C62: 5713 | D62: 271 | E62: 288 | F62: 10029 | G62: 203 | H62: 14 | I62: 241 | J62: 86.78 | K62: 0.8325 | L62: 198 | M62: 2 | N62: 2 | O62: 0.0099 | P62: 2 | Q62: 20.99731598 | R62: 418 | S62: 0.7703 | T62: 5520 | U62: 274 | V62: 9788 | W62: 19.37751144 | X62: 0.7707 | Y62: 41 | Z62: 3653.1 | AA62: 41 | AB62: 41 | AC62: 0.0074 | AD62: 5207.4 | AE62: 57 | AF62: 0.01 | AG62: 58 | AH62: 3851.1 | AI62: 43 | AJ62: 43 | AK62: 0.0075 | AL62: 43 | AM62: 0.07316646245 | AN62: 0.04743567303 | AO62: 0.06896551724 | AP62: 0.002450551374 | AQ62: 0.04796079118 | AR62: 43 | AS62: 1877 | AT62: 1920 | BA62: 十二月份
A63: 42359 | B63: 1 | C63: 5768 | D63: 318 | E63: 336 | F63: 10420 | G63: 279 | H63: 26 | I63: 326 | J63: 112.01 | K63: 0.8746 | L63: 297 | M63: 3 | N63: 3 | O63: 0.0108 | P63: 3 | Q63: 21.23211756 | R63: 427 | S63: 0.7725 | T63: 5506 | U63: 310 | V63: 10094 | W63: 18.30034327 | X63: 0.7715 | Y63: 59 | Z63: 5256.9 | AA63: 58 | AB63: 59 | AC63: 0.0105 | AD63: 6534 | AE63: 69 | AF63: 0.012 | AG63: 73 | AH63: 5553.9 | AI63: 61 | AJ63: 62 | AK63: 0.0106 | AL63: 62 | AM63: 0.07402912621 | AN63: 0.05513176144 | AO63: 0.09318996416 | AP63: 0.004507628294 | AQ63: 0.05374479889 | AR63: 35 | AS63: 1868 | AT63: 1903 | BA63: 十二月份
A64: 42360 | B64: 2 | C64: 5702 | D64: 317 | E64: 336 | F64: 10352 | G64: 253 | H64: 13 | I64: 297 | J64: 109.61 | K64: 0.8893 | L64: 396 | M64: 4 | N64: 4 | O64: 0.0158 | P64: 4 | Q64: 22.13555564 | R64: 393 | S64: 0.7653 | T64: 5459 | U64: 323 | V64: 10055 | W64: 19.5518918 | X64: 0.7631 | Y64: 42 | Z64: 3742.2 | AA64: 42 | AB64: 42 | AC64: 0.0077 | AD64: 4851 | AE64: 49 | AF64: 0.0086 | AG64: 54 | AH64: 4138.2 | AI64: 46 | AJ64: 46 | AK64: 0.0081 | AL64: 46 | AM64: 0.06892318485 | AN64: 0.05559452824 | AO64: 0.05138339921 | AP64: 0.002279901789 | AQ64: 0.0566467906 | AR64: 48 | AS64: 1911 | AT64: 1959 | BA64: 十二月份
A65: 42361 | B65: 下架 | C65: 5651 | D65: 293 | E65: 307 | F65: 10420 | G65: 290 | H65: 22 | I65: 339 | J65: 108.42 | K65: 0.931 | L65: 594 | M65: 5 | N65: 6 | O65: 0.0172 | P65: 6 | Q65: 21.92690048 | R65: 391 | S65: 0.7799 | T65: 5374 | U65: 285 | V65: 10081 | W65: 19.01838141 | X65: 0.7758 | Y65: 58 | Z65: 5164.8 | AA65: 58 | AB65: 58 | AC65: 0.0108 | AD65: 6389.4 | AE65: 65 | AF65: 0.0115 | AG65: 71 | AH65: 5758.8 | AI65: 63 | AJ65: 64 | AK65: 0.0111 | AL65: 64 | AM65: 0.06919129358 | AN65: 0.05184923022 | AO65: 0.07586206897 | AP65: 0.003893116263 | AQ65: 0.05043355158 | AR65: 92 | AS65: 1812 | AT65: 1904 | BA65: 十二月份
A66: 42362 | B66: 4 | C66: 5103 | D66: 282 | E66: 299 | F66: 9061 | G66: 239 | H66: 18 | I66: 283 | J66: 94.39 | K66: 0.9205 | L66: 294 | M66: 3 | N66: 3 | O66: 0.0126 | P66: 3 | Q66: 21.86505253 | R66: 371 | S66: 0.7842 | T66: 4875 | U66: 281 | V66: 8778 | W66: 19.52691285 | X66: 0.7815 | Y66: 38 | Z66: 3385.8 | AA66: 38 | AB66: 38 | AC66: 0.0078 | AD66: 4570.8 | AE66: 47 | AF66: 0.0092 | AG66: 51 | AH66: 3679.8 | AI66: 41 | AJ66: 41 | AK66: 0.008 | AL66: 41 | AM66: 0.07270233196 | AN66: 0.05526161082 | AO66: 0.07531380753 | AP66: 0.003527336861 | AQ66: 0.05506564766 | AR66: 33 | AS66: 1389 | AT66: 1422 | BA66: 十二月份
A67: 42363 | B67: =IF(A67="","",IF(WEEKDAY(A67,11)=3,"下架",WEEKDAY(A67,11))) -> 5 | C67: 5321 | D67: 313 | E67: 332 | F67: 9674 | G67: 210 | H67: 15 | I67: 251 | J67: 96.43 | K67: 0.9143 | L67: 198 | M67: 2 | N67: 2 | O67: 0.0095 | P67: 2 | Q67: 21.30673134 | R67: 390 | S67: 0.77 | T67: 5121 | U67: 317 | V67: 9423 | W67: 19.30556288 | X67: 0.7684 | Y67: 56 | Z67: 5075.7 | AA67: 55 | AB67: 57 | AC67: 0.0107 | AD67: 6273.6 | AE67: 65 | AF67: 0.0122 | AG67: 70 | AH67: 5273.7 | AI67: 57 | AJ67: 59 | AK67: 0.0107 | AL67: 58 | AM67: 0.07329449352 | AN67: =D67/C67 -> 0.05882352941 | AO67: =H67/G67 -> 0.07142857143 | AP67: =H67/C67 -> 0.002819018981 | AQ67: =U67/C67 -> 0.05957526781 | AR67: 25 | AS67: 1674 | AT67: =AR67+AS67 -> 1699 | BA67: 十二月份
A68: 42364 | B68: 6 | C68: 6238 | D68: 346 | E68: 372 | F68: 11052 | G68: 234 | H68: 17 | I68: 277 | J68: 102.11 | K68: 0.8974 | L68: 495 | M68: 5 | N68: 5 | O68: 0.0214 | P68: 5 | Q68: 23.23262423 | R68: 465 | S68: 0.7757 | T68: 6014 | U68: 355 | V68: 10775 | W68: 21.20491536 | X68: 0.7734 | Y68: 54 | Z68: 4895.9 | AA68: 52 | AB68: 55 | AC68: 0.0086 | AD68: 6494.4 | AE68: 65 | AF68: 0.0104 | AG68: 72 | AH68: 5390.9 | AI68: 57 | AJ68: 60 | AK68: 0.0091 | AL68: 59 | AM68: =R68/C68 -> 0.0745431228 | AN68: 0.05546649567 | AO68: 0.07264957265 | AP68: 0.002725232446 | AQ68: 0.05690926579 | AR68: 33 | AS68: 2187 | AT68: 2220 | BA68: 十二月份
A69: 42365 | B69: 7 | C69: 6468 | D69: 390 | E69: 413 | F69: 11739 | G69: 192 | H69: 17 | I69: 229 | J69: 95.9 | K69: 0.8854 | L69: 198 | M69: 2 | N69: 2 | O69: 0.0104 | P69: 2 | Q69: 22.30661717 | R69: 512 | S69: 0.7701 | T69: 6284 | U69: 396 | V69: 11510 | W69: 20.84234396 | X69: 0.7691 | Y69: 55 | Z69: 4900.5 | AA69: 55 | AB69: 55 | AC69: 0.0088 | AD69: 6365.7 | AE69: 68 | AF69: 0.0105 | AG69: 71 | AH69: 5098.5 | AI69: 57 | AJ69: 57 | AK69: 0.0088 | AL69: 57 | AM69: 0.0791589363 | AN69: 0.06029684601 | AO69: 0.08854166667 | AP69: 0.002628324057 | AQ69: 0.0612244898 | AR69: 34 | AS69: 2165 | AT69: 2199 | BA69: 十二月份
A70: 42366 | B70: 1 | C70: 6790 | D70: 437 | E70: 451 | F70: 12353 | G70: 278 | H70: 22 | I70: 334 | J70: 144.75 | K70: 0.8885 | L70: 396 | M70: 4 | N70: 4 | O70: 0.0144 | P70: 4 | Q70: 24.23336404 | R70: 540 | S70: 0.7608 | T70: 6529 | U70: 429 | V70: 12019 | W70: 20.88424544 | X70: 0.7597 | Y70: 67 | Z70: 6058.8 | AA70: 66 | AB70: 68 | AC70: 0.0101 | AD70: 7068.6 | AE70: 73 | AF70: 0.0108 | AG70: 79 | AH70: 6454.8 | AI70: 70 | AJ70: 72 | AK70: 0.0103 | AL70: 71 | AM70: 0.0795287187 | AN70: 0.06435935199 | AO70: 0.07913669065 | AP70: 0.00324005891 | AQ70: 0.06318114875 | AR70: 48 | AS70: 2154 | AT70: 2202 | BA70: 十二月份
A71: 42367 | B71: 2 | C71: 7433 | D71: 418 | E71: 443 | F71: 13537 | G71: 281 | H71: 28 | I71: 335 | J71: 115.36 | K71: 0.8043 | L71: 198 | M71: 2 | N71: 2 | O71: 0.0071 | P71: 2 | Q71: 23.19835222 | R71: 549 | S71: 0.7671 | T71: 7176 | U71: 415 | V71: 13202 | W71: 20.85972534 | X71: 0.768 | Y71: 72 | Z71: 6415.2 | AA71: 71 | AB71: 72 | AC71: 0.0099 | AD71: 7870.5 | AE71: 84 | AF71: 0.0113 | AG71: 88 | AH71: 6613.2 | AI71: 73 | AJ71: 74 | AK71: 0.0098 | AL71: 74 | AM71: 0.07385981434 | AN71: 0.05623570564 | AO71: 0.09964412811 | AP71: 0.003766985067 | AQ71: 0.05583210009 | AR71: 56 | AS71: 2264 | AT71: 2320 | BA71: 十二月份
A72: 42368 | B72: 下架 | C72: 7037 | D72: 359 | E72: 381 | F72: 12383 | G72: 335 | H72: 25 | I72: 398 | J72: 95.76 | K72: 0.8687 | L72: 594 | M72: 6 | N72: 6 | O72: 0.0179 | P72: 6 | Q72: 21.72404135 | R72: 497 | S72: 0.7843 | T72: 6721 | U72: 356 | V72: 11985 | W72: 19.26548219 | X72: 0.7841 | Y72: 48 | Z72: 4534 | AA72: 47 | AB72: 48 | AC72: 0.007 | AD72: 6524.1 | AE72: 61 | AF72: 0.0087 | AG72: 68 | AH72: 5128 | AI72: 53 | AJ72: 54 | AK72: 0.0075 | AL72: 54 | AM72: 0.07062668751 | AN72: 0.05101605798 | AO72: 0.07462686567 | AP72: 0.003552650277 | AQ72: 0.05058973995 | AR72: 100 | AS72: 2108 | AT72: 2208 | BA72: 十二月份
A73: 42369 | B73: 4 | C73: 5844 | D73: 363 | E73: 381 | F73: 10587 | G73: 252 | H73: 25 | I73: 310 | J73: 140.96 | K73: 0.8651 | L73: 198 | M73: 2 | N73: 2 | O73: 0.0079 | P73: 2 | Q73: 24.02454435 | R73: 430 | S73: 0.7717 | T73: 5604 | U73: 356 | V73: 10277 | W73: 20.49730962 | X73: 0.7711 | Y73: 63 | Z73: 5595.22 | AA73: 63 | AB73: 63 | AC73: 0.0112 | AD73: 7068.6 | AE73: 74 | AF73: 0.0127 | AG73: 79 | AH73: 5793.22 | AI73: 65 | AJ73: 65 | AK73: 0.0111 | AL73: 65 | AM73: 0.0735797399 | AN73: 0.06211498973 | AO73: 0.09920634921 | AP73: 0.004277891855 | AQ73: 0.06091718001 | AR73: 36 | AS73: 1662 | AT73: 1698 | BA73: 十二月份

Sheet 门诊部
J4: 单品诊断杜邦分析图
L13: 全店销售额
L14: =数据透视表!B5 -> 39752.32 | M14: =IF(数据透视表!H5=0,0,(数据透视表!B5-数据透视表!H5)/数据透视表!H5) -> 0.3259126583
F18: pc直通车销售额 | I18: PC销售额 | O18: 无线销售额 | R18: 无线直通车销售额
F19: =数据透视表!B33 -> 0 | G19: =IF(数据透视表!H33=0,0,(数据透视表!B33-数据透视表!H33)/数据透视表!H33) -> 0 | I19: =数据透视表!B24 -> 2277 | J19: =IF(数据透视表!H24=0,0,(数据透视表!B24-数据透视表!H24)/数据透视表!H24) -> 0.001319261214 | O19: =数据透视表!B10 -> 37475.32 | P19: =IF(数据透视表!H10=0,0,(数据透视表!B10-数据透视表!H10)/数据透视表!H10) -> 0.3525529557 | R19: =数据透视表!B31 -> 0 | S19: =IF(数据透视表!H31=0,0,(数据透视表!B31-数据透视表!H31)/数据透视表!H31) -> 0
G25: 访客数 | L25: 客单价 | Q25: 转化率
G26: =数据透视表!B20 -> 45131 | H26: =(数据透视表!B20-数据透视表!H20)/数据透视表!H20 -> 0.1917663524 | Q26: =数据透视表!B3 -> 0.009614285714 | R26: =(数据透视表!B3-数据透视表!H3)/数据透视表!H3 -> 0.1069078947
B29: PC访客数 | E29: 无线访客数 | H29: 直通车点击数 | K29: 搜索访客数 | O29: 收藏率 | R29: 加购率 | U29: 跳失率 | X29: 停留时间
B30: =数据透视表!B28 -> 1782 | C30: =(数据透视表!B28-数据透视表!H28)/数据透视表!H28 -> 0.04638872578 | E30: =数据透视表!B14 -> 43449 | F30: =(数据透视表!B14-数据透视表!H14)/数据透视表!H14 -> 0.1987253766 | H30: =数据透视表!B30 -> 0 | I30: =IF(数据透视表!H30=0,0,(数据透视表!B30-数据透视表!H30)/数据透视表!H30) -> 0 | K30: =数据透视表!B16 -> 14546 | L30: =(数据透视表!B16-数据透视表!H16)/数据透视表!H16 -> 0.1973987488 | O30: =数据透视表!B17 -> 0.07494164472 | P30: =(数据透视表!B17-数据透视表!H17)/数据透视表!H17 -> 0.06164162841 | R30: =数据透视表!B19 -> 0.0583304252 | S30: =(数据透视表!B19-数据透视表!H19)/数据透视表!H19 -> 0.158249844 | U30: =数据透视表!B15 -> 0.7713857143 | V30: =(数据透视表!B15-数据透视表!H15)/数据透视表!H15 -> -0.002696562806 | X30: =数据透视表!B18 -> 22.86089639 | Y30: =(数据透视表!B18-数据透视表!H18)/数据透视表!H18 -> 0.06101007643
C34: PC直通车点击 | F34: 无线直通车点击 | I34: PC搜索访客数 | L34: 无线搜索访客数
C35: =数据透视表!B34 -> 0 | D35: =IF(数据透视表!H34=0,0,(数据透视表!B34-数据透视表!H34)/数据透视表!H34) -> 0 | F35: =数据透视表!B32 -> 0 | G35: =IF(数据透视表!H32=0,0,(数据透视表!B32-数据透视表!H32)/数据透视表!H32) -> 0 | I35: =数据透视表!B21 -> 332 | J35: =(数据透视表!B21-数据透视表!H21)/数据透视表!B21 -> 0.04518072289 | L35: =数据透视表!B7 -> 14214 | M35: =(数据透视表!B7-数据透视表!H7)/数据透视表!H7 -> 0.2014199983 | Q35: PC转化率 | U35: 无线转化率
Q36: =数据透视表!B22 -> 0.01265714286 | R36: =(数据透视表!B22-数据透视表!H22)/数据透视表!H22 -> 0.007963594994 | U36: =数据透视表!B8 -> 0.009471428571 | V36: =(数据透视表!B8-数据透视表!H8)/数据透视表!H8 -> 0.1180438449
H38: 下单买家数
H39: =数据透视表!B6 -> 490 | I39: =(数据透视表!B6-数据透视表!H6)/数据透视表!H6 -> 0.3315217391
H41: 支付买家数
H42: =数据透视表!B4 -> 432 | I42: =(数据透视表!B4-数据透视表!H4)/数据透视表!H4 -> 0.3090909091
F45: pc支付买家数 | J45: 无线支付买家数
F46: =数据透视表!B23 -> 23 | G46: =(数据透视表!B23-数据透视表!H23)/数据透视表!H23 -> 0.04545454545 | J46: =数据透视表!B9 -> 409 | K46: =(数据透视表!B9-数据透视表!H9)/数据透视表!H9 -> 0.3279220779

Sheet 空间 (hidden)
A1: 访客数 | B1: FALSE | C1: =IF(B1=TRUE,ROW(A2),"") -> 
A2: 加购人数 | B2: FALSE | C2: =IF(B2=TRUE,ROW(A3),"") -> 
A3: 加购商品件数
A4: 浏览量 | B4: FALSE
A5: PC端访客数 | B5: FALSE
A6: PC端加购商品件数
A7: PC端浏览量 | B7: FALSE
A8: PC端平均停留时长(秒) | B8: FALSE
A9: PC端跳出率 | B9: FALSE
A10: PC端支付金额(元) | B10: FALSE
A11: PC端支付买家数 | B11: FALSE
A12: PC端支付商品件数
A13: PC端支付转化率 | B13: FALSE
A14: PC端支付子订单数 | B14: FALSE
A15: 平均停留时长(秒) | B15: FALSE
A16: 商品收藏人数
A17: 跳出率 | B17: FALSE
A18: 无线端访客数 | B18: FALSE
A19: 无线端加购商品件数
A20: 无线端浏览量 | B20: FALSE
A21: 无线端平均停留时长(秒) | B21: FALSE
A22: 无线端跳出率 | B22: FALSE
A23: 无线端支付子订单数 | B23: FALSE
A24: 无线端支付金额(元) | B24: FALSE
A25: 无线端支付买家数 | B25: FALSE
A26: 无线端支付商品件数
A27: 无线端支付转化率 | B27: FALSE
A28: 下单金额(元) | B28: FALSE
A29: 下单买家数 | B29: FALSE
A30: 下单转化率 | B30: FALSE
A31: 下单商品件数
A32: 支付金额(元) | B32: FALSE
A33: 支付买家数 | B33: TRUE | C33: 34
A34: 支付商品件数
A35: 支付转化率 | B35: TRUE | C35: 36
A36: 支付子订单数 | B36: FALSE
A37: 收藏率 | B37: FALSE
A38: 加购率 | B38: FALSE
A39: PC收藏率
A40: PC加购率
A41: 无线加购率
A42: pc搜索uv | B42: FALSE
A43: 无线搜索uv | B43: FALSE
A44: 搜索UV | B44: FALSE
A45: 直通车销售额 | B45: FALSE
A46: pc直通车销售额 | B46: FALSE
A47: 无线直通车销售额 | B47: FALSE
A48: 直通车点击量 | B48: FALSE
A49: pc直通车点击量 | B49: FALSE
A50: 无线直通车点击量 | B50: FALSE

Sheet 分诊部
K29: 4
A31: 时间 | B31: 周 | C31: =OFFSET(数据源!A1,0,封面!$AH$19) -> 支付买家数 | D31: =OFFSET(数据源!A1,0,封面!$AH$20) -> 支付转化率
A32: =SMALL(数据源!A:A,封面!$AH$15) -> 2015-12-02 | B32: =IF(A32="","",OFFSET(数据源!A1,封面!$AH$15,1)) -> 下架 | C32: =IF(A32="","",OFFSET(数据源!A1,封面!$AH$15,封面!$AH$19)) -> 28 | D32: =IF(A32="","",OFFSET(数据源!A1,封面!$AH$15,封面!$AH$20)) -> 0.0059
A33: =IF(ROW(A2)<封面!$AH$16,A32+1,"") -> 2015-12-03 | B33: =IF(A33="","",OFFSET(数据源!A2,封面!$AH$15,1)) -> 4 | C33: =IF(A33="","",OFFSET(数据源!A2,封面!$AH$15,封面!$AH$19)) -> 49 | D33: =IF(A33="","",OFFSET(数据源!A2,封面!$AH$15,封面!$AH$20)) -> 0.011
A34: =IF(ROW(A3)<封面!$AH$16,A33+1,"") -> 2015-12-04 | B34: =IF(A34="","",OFFSET(数据源!A3,封面!$AH$15,1)) -> 5 | C34: =IF(A34="","",OFFSET(数据源!A3,封面!$AH$15,封面!$AH$19)) -> 31 | D34: =IF(A34="","",OFFSET(数据源!A3,封面!$AH$15,封面!$AH$20)) -> 0.0078
A35: =IF(ROW(A4)<封面!$AH$16,A34+1,"") -> 2015-12-05 | B35: =IF(A35="","",OFFSET(数据源!A4,封面!$AH$15,1)) -> 6 | C35: =IF(A35="","",OFFSET(数据源!A4,封面!$AH$15,封面!$AH$19)) -> 26 | D35: =IF(A35="","",OFFSET(数据源!A4,封面!$AH$15,封面!$AH$20)) -> 0.0059
A36: =IF(ROW(A5)<封面!$AH$16,A35+1,"") -> 2015-12-06 | B36: =IF(A36="","",OFFSET(数据源!A5,封面!$AH$15,1)) -> 7 | C36: =IF(A36="","",OFFSET(数据源!A5,封面!$AH$15,封面!$AH$19)) -> 47 | D36: =IF(A36="","",OFFSET(数据源!A5,封面!$AH$15,封面!$AH$20)) -> 0.0095
A37: =IF(ROW(A6)<封面!$AH$16,A36+1,"") -> 2015-12-07 | B37: =IF(A37="","",OFFSET(数据源!A6,封面!$AH$15,1)) -> 1 | C37: =IF(A37="","",OFFSET(数据源!A6,封面!$AH$15,封面!$AH$19)) -> 29 | D37: =IF(A37="","",OFFSET(数据源!A6,封面!$AH$15,封面!$AH$20)) -> 0.0052
A38: =IF(ROW(A7)<封面!$AH$16,A37+1,"") -> 2015-12-08 | B38: =IF(A38="","",OFFSET(数据源!A7,封面!$AH$15,1)) -> 2 | C38: =IF(A38="","",OFFSET(数据源!A7,封面!$AH$15,封面!$AH$19)) -> 30 | D38: =IF(A38="","",OFFSET(数据源!A7,封面!$AH$15,封面!$AH$20)) -> 0.0052
A39: =IF(ROW(A8)<封面!$AH$16,A38+1,"") -> 2015-12-09 | B39: =IF(A39="","",OFFSET(数据源!A8,封面!$AH$15,1)) -> 下架 | C39: =IF(A39="","",OFFSET(数据源!A8,封面!$AH$15,封面!$AH$19)) -> 40 | D39: =IF(A39="","",OFFSET(数据源!A8,封面!$AH$15,封面!$AH$20)) -> 0.0072
A40: =IF(ROW(A9)<封面!$AH$16,A39+1,"") -> 2015-12-10 | B40: =IF(A40="","",OFFSET(数据源!A9,封面!$AH$15,1)) -> 4 | C40: =IF(A40="","",OFFSET(数据源!A9,封面!$AH$15,封面!$AH$19)) -> 35 | D40: =IF(A40="","",OFFSET(数据源!A9,封面!$AH$15,封面!$AH$20)) -> 0.0066
A41: =IF(ROW(A10)<封面!$AH$16,A40+1,"") -> 2015-12-11 | B41: =IF(A41="","",OFFSET(数据源!A10,封面!$AH$15,1)) -> 5 | C41: =IF(A41="","",OFFSET(数据源!A10,封面!$AH$15,封面!$AH$19)) -> 41 | D41: =IF(A41="","",OFFSET(数据源!A10,封面!$AH$15,封面!$AH$20)) -> 0.0059
A42: =IF(ROW(A11)<封面!$AH$16,A41+1,"") -> 2015-12-12 | B42: =IF(A42="","",OFFSET(数据源!A11,封面!$AH$15,1)) -> 6 | C42: =IF(A42="","",OFFSET(数据源!A11,封面!$AH$15,封面!$AH$19)) -> 230 | D42: =IF(A42="","",OFFSET(数据源!A11,封面!$AH$15,封面!$AH$20)) -> 0.0281
A43: =IF(ROW(A12)<封面!$AH$16,A42+1,"") -> 2015-12-13 | B43: =IF(A43="","",OFFSET(数据源!A12,封面!$AH$15,1)) -> 7 | C43: =IF(A43="","",OFFSET(数据源!A12,封面!$AH$15,封面!$AH$19)) -> 36 | D43: =IF(A43="","",OFFSET(数据源!A12,封面!$AH$15,封面!$AH$20)) -> 0.0058
A44: =IF(ROW(A13)<封面!$AH$16,A43+1,"") -> 2015-12-14 | B44: =IF(A44="","",OFFSET(数据源!A13,封面!$AH$15,1)) -> 1 | C44: =IF(A44="","",OFFSET(数据源!A13,封面!$AH$15,封面!$AH$19)) -> 54 | D44: =IF(A44="","",OFFSET(数据源!A13,封面!$AH$15,封面!$AH$20)) -> 0.0092
A45: =IF(ROW(A14)<封面!$AH$16,A44+1,"") -> 2015-12-15 | B45: =IF(A45="","",OFFSET(数据源!A14,封面!$AH$15,1)) -> 2 | C45: =IF(A45="","",OFFSET(数据源!A14,封面!$AH$15,封面!$AH$19)) -> 45 | D45: =IF(A45="","",OFFSET(数据源!A14,封面!$AH$15,封面!$AH$20)) -> 0.0073
A46: =IF(ROW(A15)<封面!$AH$16,A45+1,"") -> 2015-12-16 | B46: =IF(A46="","",OFFSET(数据源!A15,封面!$AH$15,1)) -> 下架 | C46: =IF(A46="","",OFFSET(数据源!A15,封面!$AH$15,封面!$AH$19)) -> 57 | D46: =IF(A46="","",OFFSET(数据源!A15,封面!$AH$15,封面!$AH$20)) -> 0.0101
A47: =IF(ROW(A16)<封面!$AH$16,A46+1,"") -> 2015-12-17 | B47: =IF(A47="","",OFFSET(数据源!A16,封面!$AH$15,1)) -> 4 | C47: =IF(A47="","",OFFSET(数据源!A16,封面!$AH$15,封面!$AH$19)) -> 40 | D47: =IF(A47="","",OFFSET(数据源!A16,封面!$AH$15,封面!$AH$20)) -> 0.0084
A48: =IF(ROW(A17)<封面!$AH$16,A47+1,"") -> 2015-12-18 | B48: =IF(A48="","",OFFSET(数据源!A17,封面!$AH$15,1)) -> 5 | C48: =IF(A48="","",OFFSET(数据源!A17,封面!$AH$15,封面!$AH$19)) -> 47 | D48: =IF(A48="","",OFFSET(数据源!A17,封面!$AH$15,封面!$AH$20)) -> 0.0098
A49: =IF(ROW(A18)<封面!$AH$16,A48+1,"") -> 2015-12-19 | B49: =IF(A49="","",OFFSET(数据源!A18,封面!$AH$15,1)) -> 6 | C49: =IF(A49="","",OFFSET(数据源!A18,封面!$AH$15,封面!$AH$19)) -> 29 | D49: =IF(A49="","",OFFSET(数据源!A18,封面!$AH$15,封面!$AH$20)) -> 0.0057
A50: =IF(ROW(A19)<封面!$AH$16,A49+1,"") -> 2015-12-20 | B50: =IF(A50="","",OFFSET(数据源!A19,封面!$AH$15,1)) -> 7 | C50: =IF(A50="","",OFFSET(数据源!A19,封面!$AH$15,封面!$AH$19)) -> 43 | D50: =IF(A50="","",OFFSET(数据源!A19,封面!$AH$15,封面!$AH$20)) -> 0.0075
A51: =IF(ROW(A20)<封面!$AH$16,A50+1,"") -> 2015-12-21 | B51: =IF(A51="","",OFFSET(数据源!A20,封面!$AH$15,1)) -> 1 | C51: =IF(A51="","",OFFSET(数据源!A20,封面!$AH$15,封面!$AH$19)) -> 61 | D51: =IF(A51="","",OFFSET(数据源!A20,封面!$AH$15,封面!$AH$20)) -> 0.0106
A52: =IF(ROW(A21)<封面!$AH$16,A51+1,"") -> 2015-12-22 | B52: =IF(A52="","",OFFSET(数据源!A21,封面!$AH$15,1)) -> 2 | C52: =IF(A52="","",OFFSET(数据源!A21,封面!$AH$15,封面!$AH$19)) -> 46 | D52: =IF(A52="","",OFFSET(数据源!A21,封面!$AH$15,封面!$AH$20)) -> 0.0081
A53: =IF(ROW(A22)<封面!$AH$16,A52+1,"") -> 2015-12-23 | B53: =IF(A53="","",OFFSET(数据源!A22,封面!$AH$15,1)) -> 下架 | C53: =IF(A53="","",OFFSET(数据源!A22,封面!$AH$15,封面!$AH$19)) -> 63 | D53: =IF(A53="","",OFFSET(数据源!A22,封面!$AH$15,封面!$AH$20)) -> 0.0111
A54: =IF(ROW(A23)<封面!$AH$16,A53+1,"") -> 2015-12-24 | B54: =IF(A54="","",OFFSET(数据源!A23,封面!$AH$15,1)) -> 4 | C54: =IF(A54="","",OFFSET(数据源!A23,封面!$AH$15,封面!$AH$19)) -> 41 | D54: =IF(A54="","",OFFSET(数据源!A23,封面!$AH$15,封面!$AH$20)) -> 0.008
A55: =IF(ROW(A24)<封面!$AH$16,A54+1,"") -> 2015-12-25 | B55: =IF(A55="","",OFFSET(数据源!A24,封面!$AH$15,1)) -> 5 | C55: =IF(A55="","",OFFSET(数据源!A24,封面!$AH$15,封面!$AH$19)) -> 57 | D55: =IF(A55="","",OFFSET(数据源!A24,封面!$AH$15,封面!$AH$20)) -> 0.0107
A56: =IF(ROW(A25)<封面!$AH$16,A55+1,"") -> 2015-12-26 | B56: =IF(A56="","",OFFSET(数据源!A25,封面!$AH$15,1)) -> 6 | C56: =IF(A56="","",OFFSET(数据源!A25,封面!$AH$15,封面!$AH$19)) -> 57 | D56: =IF(A56="","",OFFSET(数据源!A25,封面!$AH$15,封面!$AH$20)) -> 0.0091
A57: =IF(ROW(A26)<封面!$AH$16,A56+1,"") -> 2015-12-27 | B57: =IF(A57="","",OFFSET(数据源!A26,封面!$AH$15,1)) -> 7 | C57: =IF(A57="","",OFFSET(数据源!A26,封面!$AH$15,封面!$AH$19)) -> 57 | D57: =IF(A57="","",OFFSET(数据源!A26,封面!$AH$15,封面!$AH$20)) -> 0.0088
A58: =IF(ROW(A27)<封面!$AH$16,A57+1,"") -> 2015-12-28 | B58: =IF(A58="","",OFFSET(数据源!A27,封面!$AH$15,1)) -> 1 | C58: =IF(A58="","",OFFSET(数据源!A27,封面!$AH$15,封面!$AH$19)) -> 70 | D58: =IF(A58="","",OFFSET(数据源!A27,封面!$AH$15,封面!$AH$20)) -> 0.0103
A59: =IF(ROW(A28)<封面!$AH$16,A58+1,"") -> 2015-12-29 | B59: =IF(A59="","",OFFSET(数据源!A28,封面!$AH$15,1)) -> 2 | C59: =IF(A59="","",OFFSET(数据源!A28,封面!$AH$15,封面!$AH$19)) -> 73 | D59: =IF(A59="","",OFFSET(数据源!A28,封面!$AH$15,封面!$AH$20)) -> 0.0098
A60: =IF(ROW(A29)<封面!$AH$16,A59+1,"") -> 2015-12-30 | B60: =IF(A60="","",OFFSET(数据源!A29,封面!$AH$15,1)) -> 下架 | C60: =IF(A60="","",OFFSET(数据源!A29,封面!$AH$15,封面!$AH$19)) -> 53 | D60: =IF(A60="","",OFFSET(数据源!A29,封面!$AH$15,封面!$AH$20)) -> 0.0075
A61: =IF(ROW(A30)<封面!$AH$16,A60+1,"") -> 2015-12-31 | B61: =IF(A61="","",OFFSET(数据源!A30,封面!$AH$15,1)) -> 4 | C61: =IF(A61="","",OFFSET(数据源!A30,封面!$AH$15,封面!$AH$19)) -> 65 | D61: =IF(A61="","",OFFSET(数据源!A30,封面!$AH$15,封面!$AH$20)) -> 0.0111
